Cogmind - Beta 9.3 @@@ ROGUE MODE // 2019.12.19 @ 00:45:56 // Winter2019/RPGLIKE Player: Terminus Result: Establishing 0b11! Performance ------------- Evolutions (9) 4500 Regions Visited (43) 8600 Robots Destroyed (1302) 6510 Value Destroyed (75163) 75163 Prototype IDs (153) 3060 Alien Tech Used (13) 2600 Bonus (96484) 96484 TOTAL SCORE: 196917 Bonus ------- Triggered High Security 1000 Triggered Max Security 1000 High Alert Combat Kills 47812 Follower Combat Kills 2031 Entered Garrisons 200 Network Hubs Disabled 800 Aligned with FarCom 300 Met Data Miner 300 Met Zhirov 300 Built Enhanced Grunts 300 Met R17 at Cetus 500 Found Hidden Lab 3000 Destroyed MAIN.C Guards 500 Met MAIN.C 5000 Destroyed MAIN.C Shell 5000 Destroyed MAIN.C 10000 Met Architect 300 Destroyed A8 300 Destroyed A6 400 Destroyed A5 500 Destroyed A4 700 Destroyed A3 800 Destroyed A2 1000 Destroyed Architect 15000 Win 3000 Friendly Fire -3559 Cogmind --------- Core Integrity 1197/1300 Matter 395/425 Energy 3350/3380 System Corruption 0% Temperature Cool (30) Movement Flying (10) Location 0b11 Command Parts ------- > --- POWER (2) -------- Zero-point Reactor Zero-point Reactor > --- PROPULSION (5) --- Cooled Q-thruster Cooled Q-thruster Cooled Q-thruster Cooled Q-thruster Cooled Q-thruster > --- UTILITY (16) ----- Coolant Network Experimental Energy Well Superbattery ST Field Compressor Experimental Signal Interpreter Experimental Targeting Computer Experimental Targeting Computer Experimental Targeting Computer Experimental Armor Integrity Analyzer Advanced Particle Accelerator Experimental Weapon Cycler Experimental Phase Shifter AEGIS Remote Shield Architect God Chip A Architect God Chip D > --- WEAPON (3) ------- Gatling Beam Gatling Beam Gatling Beam > --- INVENTORY (6) ---- Experimental Energy Well (1000) Experimental Phase Shifter Compact HERF Cannon Improved Potential Cannon Peak State ------------ > --- POWER ------------ Zero-point Reactor Zero-point Reactor > --- PROPULSION ------- Cooled Q-thruster Cooled Q-thruster Cooled Q-thruster Cooled Q-thruster Cooled Q-thruster > --- UTILITY ---------- Coolant Network Experimental Energy Well Superbattery ST Field Compressor Experimental Signal Interpreter Experimental Targeting Computer Experimental Targeting Computer Experimental Targeting Computer Experimental Armor Integrity Analyzer Advanced Particle Accelerator Experimental Weapon Cycler Experimental Phase Shifter AEGIS Remote Shield Architect God Chip A Architect God Chip D > --- WEAPON ----------- Gatling Beam Gatling Beam Gatling Beam > --- INVENTORY -------- Experimental Energy Well Experimental Phase Shifter High-powered Transdimensional Reconstructor Compact HERF Cannon Improved Potential Cannon [Rating: 262] Favorites ----------- Power Light Neutrino Core Engine Heavy Ion Engine Power Core Light Neutrino Core Reactor Zero-point Reactor Propulsion Cooled Q-thruster Hover Unit Experimental Gyrokinetic Inverter Flight Unit Cooled Q-thruster Utility Experimental Targeting Computer Device Advanced Weapon Cycler Storage Superbattery Processor Experimental Targeting Computer Hackware Deep Network Scanner Protection 8R-AWN's Armor/TH Weapon 8R-AWN's Boregun Energy Gun Improved EM Shotgun Energy Cannon Compact HERF Cannon Ballistic Gun 8R-AWN's Boregun Ballistic Cannon Graviton Cannon Launcher EMP Blaster Special Weapon Plasma Cutter Slashing Weapon Katana Piercing Weapon Spear Build | -11 -10 -10 -9 -9 -9 -8 -8 -7 -7 -7 -7 -7 -7 -6 -6 -6 -6 -6 -6 -6 -6 -5 -5 -5 -5 -5 -5 -4 -4 -4 -4 -4 -4 -3 -3 -3 -2 -2 -1 -1 -1 -1 -1 ------- Run | Scr Mat Min Mat Min Exi Min Mat Fac Was Fac Low Low Dat Pro Fac Was Fac Ext Cet Arc Hub Fac Was Fac Upp Upp Zhi Pro Fac Was Fac Arm Lab Res Qua Sec Res Tes Acc Gar Acc Com Ac0 Slots Evolved 21 | 4 2 1 3 . . . 2 . . . . . . 2 1 . . . . . 1 . . . . 1 . . . . . . 1 . . 1 . . 1 . . 1 . Power 1 | . . . . . . . 1 . . . . . . . . . . . . . . . . . . . . . . . . . . . . . . . . . . . . Propulsion 3 | 1 . 1 . . . . . . . . . . . 1 . . . . . . . . . . . . . . . . . . . . . . . . . . . . . Utility 15 | 2 2 . 2 . . . 1 . . . . . . 1 1 . . . . . 1 . . . . 1 . . . . . . 1 . . 1 . . 1 . . 1 . Weapon 2 | 1 . . 1 . . . . . . . . . . . . . . . . . . . . . . . . . . . . . . . . . . . . . . . . Parts Attached 258 | 3 6 1 17 2 20 . 17 12 2 2 2 1 8 3 7 . 5 . 3 . 1 3 1 14 . . 3 . 5 . 2 12 8 3 1 5 5 21 2 . . 32 29 Power 19 | 1 . . 1 . 3 . . . . . . . . 1 1 . 1 . . . . . . . . . 2 . 2 . . . . . . 2 . 5 . . . . . Engine 3 | 1 . . 1 . . . . . . . . . . 1 . . . . . . . . . . . . . . . . . . . . . . . . . . . . . Core 5 | . . . . . 2 . . . . . . . . . 1 . 1 . . . . . . . . . 1 . . . . . . . . . . . . . . . . Reactor 11 | . . . . . 1 . . . . . . . . . . . . . . . . . . . . . 1 . 2 . . . . . . 2 . 5 . . . . . Propulsion 36 | . 2 1 3 . . . 2 4 . . . . . 1 4 . 1 . . . . . . 4 . . . . . . . . . 2 . . 3 1 . . . 3 5 Treads . | . . . . . . . . . . . . . . . . . . . . . . . . . . . . . . . . . . . . . . . . . . . . Leg . | . . . . . . . . . . . . . . . . . . . . . . . . . . . . . . . . . . . . . . . . . . . . Wheel . | . . . . . . . . . . . . . . . . . . . . . . . . . . . . . . . . . . . . . . . . . . . . Hover 2 | . . . . . . . . . . . . . . . . . . . . . . . . . . . . . . . . . . . . . . . . . . 2 . Flight 34 | . 2 1 3 . . . 2 4 . . . . . 1 4 . 1 . . . . . . 4 . . . . . . . . . 2 . . 3 1 . . . 1 5 Utility 85 | . 2 . 8 1 8 . 7 2 2 1 . . 6 . 1 . 3 . 1 . 1 1 . . . . 1 . 1 . . 1 5 . 1 3 1 7 2 . . 12 7 Device 41 | . 2 . 4 . 6 . 3 2 1 . . . 2 . . . . . 1 . . . . . . . 1 . 1 . . 1 1 . 1 2 . 4 1 . . 5 3 Storage 9 | . . . 1 . 1 . . . 1 . . . 1 . . . . . . . . . . . . . . . . . . . . . . . . 1 1 . . 2 1 Processor 14 | . . . 1 1 . . 2 . . 1 . . . . . . 3 . . . . 1 . . . . . . . . . . . . . 1 1 . . . . 3 . Hackware 10 | . . . 2 . . . 1 . . . . . 2 . 1 . . . . . 1 . . . . . . . . . . . 1 . . . . . . . . . 2 Protection 11 | . . . . . 1 . 1 . . . . . 1 . . . . . . . . . . . . . . . . . . . 3 . . . . 2 . . . 2 1 Artifact . | . . . . . . . . . . . . . . . . . . . . . . . . . . . . . . . . . . . . . . . . . . . . Weapon 118 | 2 2 . 5 1 9 . 8 6 . 1 2 1 2 1 1 . . . 2 . . 2 1 10 . . . . 2 . 2 11 3 1 . . 1 8 . . . 17 17 Energy Gun 26 | 1 2 . 4 1 3 . 2 1 . . . . . . . . . . 1 . . . . . . . . . . . . 1 1 . . . . . . . . . 9 Energy Cannon 36 | . . . . . . . . 2 . 1 . . 1 1 . . . . . . . 1 1 1 . . . . . . . 2 2 1 . . 1 5 . . . 10 7 Ballistic Gun 19 | 1 . . . . 1 . 3 1 . . . . . . 1 . . . 1 . . . . 3 . . . . 1 . 1 6 . . . . . . . . . . . Ballistic Cannon 3 | . . . . . 1 . . . . . . . . . . . . . . . . . . . . . . . . . . . . . . . . 1 . . . 1 . Launcher 18 | . . . 1 . 1 . 3 . . . 1 1 . . . . . . . . . . . 2 . . . . . . . 1 . . . . . 1 . . . 6 1 Special Weapon 7 | . . . . . 3 . . . . . . . . . . . . . . . . . . 2 . . . . 1 . . . . . . . . 1 . . . . . Impact Weapon . | . . . . . . . . . . . . . . . . . . . . . . . . . . . . . . . . . . . . . . . . . . . . Slashing Weapon 2 | . . . . . . . . 1 . . . . . . . . . . . . . . . . . . . . . . . 1 . . . . . . . . . . . Piercing Weapon 7 | . . . . . . . . 1 . . 1 . 1 . . . . . . . . 1 . 2 . . . . . . 1 . . . . . . . . . . . . Special Melee Weapon . | . . . . . . . . . . . . . . . . . . . . . . . . . . . . . . . . . . . . . . . . . . . . Unidentified Prototypes 59 | . . . 3 . 7 . 4 . . . . . 2 . 1 . . . 1 . . . . 2 . . 2 . . . . 6 4 . . 8 . 8 . . . 5 6 Parts Lost 3 | . . . . . . . 1 . . . . . . . . . . . . . . . . . . . . . . . . . . . . . . 1 1 . . . . Power . | . . . . . . . . . . . . . . . . . . . . . . . . . . . . . . . . . . . . . . . . . . . . Propulsion . | . . . . . . . . . . . . . . . . . . . . . . . . . . . . . . . . . . . . . . . . . . . . Utility 1 | . . . . . . . . . . . . . . . . . . . . . . . . . . . . . . . . . . . . . . . 1 . . . . Weapon 2 | . . . . . . . 1 . . . . . . . . . . . . . . . . . . . . . . . . . . . . . . 1 . . . . . Highest Loss Streak 1 | . . . . . . . 1 . . . . . . . . . . . . . . . . . . . . . . . . . . . . . . 1 1 . . . . Average Slot Usage (%) 92 | . 65 70 92 100 99 100 93 93 93 93 93 93 89 90 99 94 95 100 100 100 99 100 100 99 100 95 98 100 100 100 100 99 93 88 88 83 83 83 83 84 84 83 90 Engine 1 | . 11 9 7 7 6 . . . . . . . . 2 4 . . . . . . . . . . . . . . . . . . . . . . . . . . . . Core 3 | . . . . . . 7 6 6 6 6 6 6 6 5 6 10 10 10 10 10 10 10 10 10 10 9 9 9 5 . . . . . . . . . . . . . . Reactor 3 | . . . . . . . . . . . . . . . . . . . . . . . . . . . . . 3 9 9 9 8 8 8 8 8 8 8 8 8 7 7 Flight 19 | . 12 20 21 21 21 21 19 18 18 18 18 18 18 20 21 21 21 21 21 21 20 20 20 20 20 19 19 19 19 19 19 19 17 19 21 20 20 20 20 20 20 19 19 Device 14 | . 17 19 20 21 16 21 19 18 18 17 12 12 8 11 10 10 10 10 10 10 10 10 10 10 10 9 12 14 14 14 14 13 11 8 8 8 8 9 14 16 16 19 19 Storage 5 | . . . 3 7 11 7 6 6 6 6 6 6 2 5 5 5 5 5 5 5 5 5 5 5 5 4 4 4 4 4 4 4 4 4 4 4 4 4 5 8 8 7 9 Processor 14 | . . . 6 7 7 7 7 12 12 12 18 18 18 16 15 15 16 21 21 21 20 20 20 20 20 19 19 19 19 19 19 19 17 17 17 16 16 16 16 16 16 16 19 Hackware 11 | . . . 10 14 14 14 12 12 12 12 12 12 12 11 15 15 15 15 15 15 17 20 20 20 20 19 19 19 19 19 19 19 17 17 14 12 12 10 6 4 4 . 3 Protection 1 | . . . . . . . . . . . . . 3 . . . . . . . . . . . . . . . . . . . 1 4 4 4 4 4 4 4 4 3 1 Energy Gun 4 | . 21 19 17 14 16 7 12 8 . . . . . . . . . . . . . . . . . . . . . . . . . . . . . . . . . . 7 Energy Cannon 4 | . . . . . . . . 2 6 6 6 4 3 3 5 5 5 5 5 5 5 5 5 4 5 4 4 4 4 4 4 4 3 6 8 8 8 7 8 8 8 5 2 Ballistic Gun 2 | . 1 . . . 2 7 2 6 6 6 6 6 6 1 4 5 5 5 5 5 5 5 5 4 5 4 4 4 3 4 4 3 3 . . . . . . . . . . Piercing Weapon 2 | . . . . . . . . 1 6 6 6 6 2 5 5 5 5 5 5 5 5 5 5 5 5 4 4 4 4 4 4 4 4 1 . . . . . . . . . Naked Turns . | . . . . . . . . . . . . . . . . . . . . . . . . . . . . . . . . . . . . . . . . . . . . Heaviest Build 118 | 8 13 13 22 22 40 25 43 32 33 34 34 30 47 39 39 38 38 38 38 38 38 43 48 51 48 48 53 53 53 50 50 52 66 70 71 91 91 100 107 107 107 118 118 Greatest Support 160 | 13 18 18 28 28 28 28 28 34 34 34 34 34 34 39 46 46 62 72 56 56 72 56 56 72 80 68 68 68 68 68 92 68 78 94 94 94 100 135 115 115 143 160 160 Greatest Overweight (x) 2 | . . . . . 1 . 1 . . . . . 1 . . . 1 2 . . . . . . . . . . . . . 2 . . . . . . . . . 1 . Average Overweight (x) . | . . . . . . . . . . . . . . . . . . . . . . . . . . . . . . . . . . . . . . . . . . . . Largest Inventory Capacity 6 | 1 2 2 6 6 6 6 6 6 6 6 6 6 6 6 6 6 6 6 6 6 6 6 6 6 6 6 6 6 6 6 6 6 6 6 6 6 6 6 6 6 6 6 6 Average Capacity 5 | . 1 2 4 6 6 6 6 6 6 6 6 6 6 6 6 6 6 6 6 6 6 6 6 6 6 6 6 6 6 6 6 6 6 6 6 6 6 6 6 6 6 6 6 Most Carried 6 | . 2 2 6 6 6 6 6 6 6 6 6 6 6 6 6 6 6 6 6 6 6 6 6 6 6 6 6 6 6 6 6 6 6 6 6 6 6 6 6 5 6 6 6 Average Carried 5 | . 1 2 4 5 4 6 5 5 5 5 6 6 5 6 5 5 6 6 5 6 6 5 6 5 6 6 5 6 6 6 5 5 4 5 5 6 5 5 5 5 5 5 5 Final Capacity 6 | 1 2 2 6 6 6 6 6 6 6 6 6 6 6 6 6 6 6 6 6 6 6 6 6 6 6 6 6 6 6 6 6 6 6 6 6 6 6 6 6 6 6 6 6 Final Carried 6 | . 2 2 6 6 6 6 6 6 6 6 6 6 6 6 5 6 6 6 6 6 6 6 6 6 6 6 6 6 6 6 6 5 6 5 6 6 6 6 5 5 6 5 5 Class Distribution -------------------- 51% | Wizard-Scout 16% | Scavenger-Sprinter 13% | Machinist-Scout 9% | Hacker-Scout 3% | Mutant Dominant Class ---------------- Mutant | -10/Materials Mutant | -10/Mines Scavenger-Sprinter | -9/Materials Scavenger-Sprinter | -9/Mines Scavenger-Sprinter | -9/Exiles Scavenger-Sprinter | -8/Mines Scavenger-Sprinter | -8/Materials Hacker-Scout | -7/Factory Hacker-Scout | -7/Waste Hacker-Scout | -7/Factory Hacker-Scout | -7/Lower Caves Hacker-Scout | -7/Lower Caves Wizard-Mutant | -7/Data Miner Wizard-Scout | -6/Proximity Caves Wizard-Scout | -6/Factory Wizard-Scout | -6/Waste Wizard-Scout | -6/Factory Wizard-Scout | -6/Extension Wizard-Scout | -6/Cetus Wizard-Scout | -6/Archives Wizard-Scout | -6/Hub_04(d) Wizard-Scout | -5/Factory Wizard-Scout | -5/Waste Wizard-Scout | -5/Factory Wizard-Scout | -5/Upper Caves Wizard-Scout | -5/Upper Caves Wizard-Scout | -5/Zhirov Wizard-Scout | -4/Proximity Caves Wizard-Scout | -4/Factory Wizard-Scout | -4/Waste Wizard-Scout | -4/Factory Wizard-Scout | -4/Armory Wizard-Scout | -4/Lab Wizard-Scout | -3/Research Wizard-Scout | -3/Quarantine Wizard-Scout | -3/Section 7 Wizard-Scout | -2/Research Wizard-Scout | -2/Testing Wizard-Scout | -1/Access Machinist-Scout | -1/Garrison Machinist-Scout | -1/Access Machinist-Scout | -1/Command Machinist-Scout | -1/Access_0 Resources | -11 -10 -10 -9 -9 -9 -8 -8 -7 -7 -7 -7 -7 -7 -6 -6 -6 -6 -6 -6 -6 -6 -5 -5 -5 -5 -5 -5 -4 -4 -4 -4 -4 -4 -3 -3 -3 -2 -2 -1 -1 -1 -1 -1 ----------- Run | Scr Mat Min Mat Min Exi Min Mat Fac Was Fac Low Low Dat Pro Fac Was Fac Ext Cet Arc Hub Fac Was Fac Upp Upp Zhi Pro Fac Was Fac Arm Lab Res Qua Sec Res Tes Acc Gar Acc Com Ac0 Matter Collected 11351 | 230 72 10 288 96 302 . 544 116 393 184 50 . 253 69 531 54 73 367 300 . 316 122 164 897 12 . . 88 20 43 230 548 . 174 10 275 30 240 20 . . 3834 396 Remotely . | . . . . . . . . . . . . . . . . . . . . . . . . . . . . . . . . . . . . . . . . . . . . Salvage Created 74505 | . 945 282 2786 290 467 85 1750 403 823 285 184 84 336 902 1726 490 196 703 136 . 1586 279 1773 3428 33 . . 154 68 . 712 2079 . 1272 834 1779 1305 1281 1968 669 3555 33919 4938 Parts 3410 | . 55 8 169 29 70 6 114 25 44 17 8 5 30 39 68 3 11 38 32 4 66 20 43 172 7 9 . 5 4 2 66 105 . 64 26 75 57 35 83 25 111 1430 230 Haulers Intercepted 36 | . 2 . 6 . . . 6 3 . . . . . . 1 . . . . . 1 . . 5 . . . . . . 1 . . . . 2 1 1 5 . 2 . . Recyclers Shooed 12 | . 3 . . . . . 4 . . . . . . . 2 . . . . . . . . 2 . . . . . . . . . . . . . . 1 . . . . Parts Field Recycled . | . . . . . . . . . . . . . . . . . . . . . . . . . . . . . . . . . . . . . . . . . . . . Retrieved Matter . | . . . . . . . . . . . . . . . . . . . . . . . . . . . . . . . . . . . . . . . . . . . . Parts Self-Destructed 31 | . . . . . . . . . . . 10 3 . 4 . . . . . . . . . . . 9 . 5 . . . . . . . . . . . . . . . Prevented 29 | . . . . . . . . . . . . 2 . 27 . . . . . . . . . . . . . . . . . . . . . . . . . . . . . Kills | -11 -10 -10 -9 -9 -9 -8 -8 -7 -7 -7 -7 -7 -7 -6 -6 -6 -6 -6 -6 -6 -6 -5 -5 -5 -5 -5 -5 -4 -4 -4 -4 -4 -4 -3 -3 -3 -2 -2 -1 -1 -1 -1 -1 ------- Run | Scr Mat Min Mat Min Exi Min Mat Fac Was Fac Low Low Dat Pro Fac Was Fac Ext Cet Arc Hub Fac Was Fac Upp Upp Zhi Pro Fac Was Fac Arm Lab Res Qua Sec Res Tes Acc Gar Acc Com Ac0 Combat Hostiles Destroyed 1075 | . 24 4 55 13 8 1 33 2 6 3 3 4 4 17 16 . 3 11 6 1 14 3 6 44 1 2 . 3 . . 14 28 . 33 20 23 13 12 38 18 48 490 51 Melee 32 | . . . . . . . . . 3 . . . 1 2 2 . 1 2 . . 3 1 5 5 . . . . . . 1 4 . 2 . . . . . . . . . Guns 202 | . 22 3 41 1 2 1 12 1 3 3 1 1 2 . 13 . 2 8 6 1 11 2 1 20 . . . 2 . . 11 21 . . . . . . . . . . 11 Cannons 130 | . . . . . . . . . . . 2 . . 1 . . . 1 . . . . . 6 1 2 . 1 . . 2 2 . 17 8 5 5 4 16 4 14 36 3 AOE 445 | . 1 1 12 12 5 . 18 1 . . . 2 . 8 1 . . . . . . . . 11 . . . . . . . 1 . 13 9 6 3 4 18 10 19 290 . Classes Destroyed 32 | . 6 . 7 1 3 . 1 . 1 1 . . . 1 . . . . . . . . . . 1 . . . . . . 2 . 1 . 2 . . . . 1 4 . Worker 44 | . 1 . 2 . . . 4 4 . . . . . . 3 . . . . . 3 . . 3 . . . . 1 . 1 . . 5 . . 1 . 2 . 5 9 . Builder 17 | . . . 5 . . 1 1 . . . . . . . 3 . . 2 . . . . . . . . . . . . 2 . . 1 . . . . . . 2 . . Tunneler 3 | . . . . 2 . . 1 . . . . . . . . . . . . . . . . . . . . . . . . . . . . . . . . . . . . Hauler 36 | . 2 . 6 . . . 6 3 . . . . . . 1 . . . . . 1 . . 5 . . . . . . 1 . . . . 2 1 1 5 . 2 . . Recycler 14 | . 1 . 2 . . . 1 . . . . . . . 1 . . . . . 1 . . 1 . . . . . . . . . 3 . . . . 1 . 3 . . Carrier 8 | . . . . . . . 1 . . . . . . . . . . . . . . . . . . . . . . . . . . . . . . . 1 . 2 4 . Mechanic 9 | . . . 1 . . . . . . . . . . . 1 . . . . . . . . . . . . . . . . . . . . . . . . . . 7 . Operator 10 | . . . 4 . . . 1 . . . . . . . . . . . . . . . . 1 . . . . . . . . . . 1 1 . . 1 . . 1 . Drone 3 | . . . . . . . . . . . . . . . . . . . . . . . . . . . . . . . . . . . . . . . . . . 3 . Turret 1 | . . . . . 1 . . . . . . . . . . . . . . . . . . . . . . . . . . . . . . . . . . . . . . Watcher 59 | . 2 . 3 . . . 4 2 . 1 . . . . 3 . . 3 1 . 2 3 . 7 . . . . 1 . . 1 . 1 2 4 4 3 4 . 1 7 . Swarmer 125 | . 9 . 8 13 . . 9 . . . 2 . . 2 . . . 4 . . . . . 6 . . . 2 . . . 4 . 9 . 3 . . 3 4 . 47 . Saboteur 36 | . . . . . . . . . . . . . . . . . . . . . . . . . . . . . . . . 1 . . . . . . . . 2 33 . Grunt 378 | . 15 4 34 . . 1 14 1 . . . 3 . 10 11 . . 2 . . 7 2 . 21 . . . . . . 5 6 . 12 13 7 5 9 20 14 14 148 . Brawler 51 | . . . 2 . . . . . . . . 1 . 1 1 . 1 . . . 1 . . 2 . . . . . . . 3 . . 2 . . 1 1 . 2 33 . Duelist 56 | . . . 3 . . . 1 . . . . . . 1 . . . . . . 1 1 . 3 . . . . . . 1 . . 1 . . . . 1 . 4 39 . Protector 23 | . . . 2 . . . . . . . . . . . . . . . . . . . . 1 . . . . . . . . . . . . . . . . 1 19 . Researcher 6 | . . . . . . . . . . . . . . . . . . . . . . . . . . . . . . . . . . . . 1 . 5 . . . . . Sentry 83 | . . . 6 . . . 9 1 . 1 1 . . 1 . . . 3 . 1 5 . . 7 . . . 1 . . 2 6 . 7 . 8 3 . 2 . 11 8 . Demolisher 12 | . . . . . . . . . . . . . . . . . . . . . . . . . . . . . . . . . . . . . . . . . . 12 . Specialist 20 | . . . . . . . . . . . . . . . . . . . . . . . . . . . . . . . . 8 . . . . . . . . . 12 . Hunter 86 | . . . . . . . . . . . . . . 2 3 . 2 1 . . . . . . . . . . . . 6 . . 2 . . 2 2 3 . 11 52 . Programmer 84 | . . . . . . . . . . 2 . . . . 1 . . 1 . . . . . 4 . 2 . . . . . . . 1 5 . 3 . 8 . 1 56 . Behemoth 4 | . . . . . . . . . . . . . . . . . . . . . . . . . . . . . . . . . . 1 . . . . . . . 3 . Compactor 12 | . . . . . . . . . 6 . . . . . . . . . . . . . 6 . . . . . . . . . . . . . . . . . . . . Cetus Guard 6 | . . . . . . . . . . . . . . . . . . . 6 . . . . . . . . . . . . . . . . . . . . . . . . S7 Guard 3 | . . . . . . . . . . . . . . . . . . . . . . . . . . . . . . . . . . . . 3 . . . . . . . M Guard 2 | . . . . . . . . . . . . . . . . . . . . . . . . . . . . . . . . . . . . . . . . . . 2 . Enhanced Grunt 38 | . . . . . . . . . . . . . 4 . . . . . . . 2 . . . . . . . . . . . . . . . . . . . . . 32 Enhanced Sentry 5 | . . . . . . . . . . . . . . . . . . . . . . . . . . . . . . . . . . . . . . . . . . . 5 Enhanced Hunter 7 | . . . . . . . . . . . . . . . . . . . . . . . . . . . . . . . . . . . . . . . . . . . 7 Combat Programmer 2 | . . . . . . . . . . . . . . . . . . . . . . . . . . . . . . . . . . . . . . . . . . 2 . Investigator 2 | . . . . . . . . . . . . . . . . . . . . . . . . . . . . . . . . . . . . . . . . . . 2 . Striker 6 | . . . . . . . . . . . . . . . . . . . . . . . . . . . . . . . . . . . . . . . . . 1 5 . Executioner 12 | . . . . . . . . . . . . . . . . . . . . . . . . . . . . . . . . . . . . 2 . . . . 1 9 . Zionite 8 | . . . . . 8 . . . . . . . . . . . . . . . . . . . . . . . . . . . . . . . . . . . . . . Master Thief 1 | . . . . . . . . . . . . . . . . . . . . . . . . . 1 . . . . . . . . . . . . . . . . . . Assembled 7 | . . . . . 7 . . . . . . . . . . . . . . . . . . . . . . . . . . . . . . . . . . . . . . Wasp 1 | . . . . . . . . . . . . . . . . . . . . . . . . . . . . . . . 1 . . . . . . . . . . . . Thug 3 | . . . . . . . . . . . . . . . . . . . . . 2 . . . . . . . . . . . . . . . . . . . . 1 . Guerrilla 1 | . . . . . . . . . . . . . . . . . . . . . . . . . . . . . . . . . . . . . . . . . . 1 . Wizard 1 | . . . . . . . . . . . . . . . . . . . . . . . . . . . . . . . . . . . . . . . . . . 1 . Fireman 1 | . . . . . . . . . . . . . . . . . . . . . . . . . . . . . . . . . . . . . . . . . . 1 . Mutant 1 | . . . . . . . . . . . . . . . . . . . . . . . . . . . . . . . . . . . . . . . . . . 1 . Best Kill Streak 147 | . 8 2 8 8 7 2 14 6 2 2 3 4 2 7 13 . 3 6 4 1 8 3 2 16 1 2 . 2 1 . 8 5 . 30 10 8 4 6 22 18 31 147 17 Combat Bots Only 146 | . 4 2 7 5 7 1 11 1 2 2 3 4 2 7 9 . 3 3 3 1 4 2 2 15 1 2 . 2 . . 7 5 . 12 10 4 4 5 15 18 23 146 17 Max Kills in Single Turn 14 | . 2 1 2 3 3 1 3 3 1 1 1 2 1 2 2 . 1 2 1 1 2 1 1 3 1 1 . 1 1 . 2 2 . 4 2 2 4 2 5 3 5 14 2 Gunslinging 1 | . . . 1 . . . . . . . . . . . . . . . . . . . . . . . . . . . . . . . . . . . . . . . . Exploded 11 | . 1 1 2 3 3 . 2 1 . . . 2 . 2 1 . . . . . . . . 3 . . . . . . . 1 . 2 2 2 3 2 3 3 4 11 . Melee 1 | . . . . . . . . . 1 . . . 1 1 1 . 1 1 . . 1 1 1 1 . . . . . . 1 1 . 1 . . . . . . . . . Uniques/NPCs Destroyed 12 | . . . . . 2 . . . . . . . 1 . . . . . 1 . . . . . . . . . . . . . . . . . . . . . . 1 7 8R-AWN (-9/Exiles) EX-DEC (-9/Exiles) EX-HEX (-9/Exiles) EX-BIN (-9/Exiles) Data Miner (-7/Data Miner) A7 (-6/Cetus) MAIN.C Shell (-1/Command) MAIN.C (-1/Command) A8 (-1/Access_0) A6 (-1/Access_0) A2 (-1/Access_0) A5 (-1/Access_0) Architect (-1/Access_0) A4 (-1/Access_0) A3 (-1/Access_0) Combat | -11 -10 -10 -9 -9 -9 -8 -8 -7 -7 -7 -7 -7 -7 -6 -6 -6 -6 -6 -6 -6 -6 -5 -5 -5 -5 -5 -5 -4 -4 -4 -4 -4 -4 -3 -3 -3 -2 -2 -1 -1 -1 -1 -1 -------- Run | Scr Mat Min Mat Min Exi Min Mat Fac Was Fac Low Low Dat Pro Fac Was Fac Ext Cet Arc Hub Fac Was Fac Upp Upp Zhi Pro Fac Was Fac Arm Lab Res Qua Sec Res Tes Acc Gar Acc Com Ac0 Damage Taken 22598 | . 780 127 1577 137 1172 61 520 130 . 122 13 262 195 528 434 . 154 924 480 27 1044 20 . 1510 112 42 . 129 . . 872 706 . 719 139 482 375 123 185 130 693 5446 2228 Core 18136 | . 653 109 1277 111 947 53 424 100 . 95 10 235 152 435 358 . 124 752 390 21 864 16 . 1264 92 32 . 109 . . 715 574 . 577 105 382 290 91 144 93 517 4216 1809 Absorbed by Shields 8651 | . . . . . . . . . . . . . . . 36 . . 260 236 . . . . . . . . . . . . 31 . . . . . . 196 141 722 5082 1947 Redirected to Core 14731 | . 395 59 993 88 787 26 333 100 . 87 10 97 140 321 280 . 104 542 308 21 603 16 . 894 74 32 . 70 . . 556 428 . 485 80 333 290 91 124 87 478 3895 1504 Core Remaining (%) 79 | 100 . 81 . . . 40 100 . . . . . . 93 . . . . . . 18 . . . . . . 94 . . . . 70 . . 91 . 100 . . . . 92 Volleys Fired 2535 | . 64 12 148 21 189 7 95 9 61 20 7 9 29 22 71 9 7 62 46 8 50 10 24 160 8 5 . 13 7 3 54 78 . 53 39 87 30 51 66 18 77 598 208 Largest 3 | . 2 2 3 2 3 1 3 2 1 1 1 1 1 1 1 1 1 1 1 1 1 1 1 1 1 1 . 1 1 1 1 1 . 1 1 1 1 1 1 1 1 1 3 Hottest 360 | . 90 90 135 90 135 30 126 90 30 69 69 36 69 69 69 30 30 69 69 30 30 30 30 120 120 120 . 120 120 120 120 120 . 200 200 200 200 200 200 200 200 200 360 Shots Fired 3218 | . 128 24 346 23 403 7 135 18 59 22 7 9 29 22 71 9 7 62 46 8 50 10 24 160 8 5 . 13 7 3 54 78 . 53 39 87 30 51 66 18 77 598 352 Gun 1783 | . 128 24 314 4 341 7 115 18 58 17 3 6 17 4 66 9 7 58 45 8 50 10 24 105 2 . . 8 1 . 42 70 . . . . . . . . . . 222 Cannon 999 | . . . . . 2 . . . 1 5 4 . 10 2 5 . . 4 1 . . . . 38 6 5 . 5 5 3 12 8 . 53 39 87 30 46 66 18 77 345 122 Launcher 372 | . . . 32 19 6 . 20 . . . . 3 2 16 . . . . . . . . . 13 . . . . . . . . . . . . . . . . . 253 8 Special 64 | . . . . . 54 . . . . . . . . . . . . . . . . . . 4 . . . . 1 . . . . . . . . 5 . . . . . Kinetic 731 | . 4 . . . 12 7 37 . 58 17 3 6 17 4 66 9 7 58 45 8 50 10 24 105 2 . . 8 1 . 42 70 . . . . . . . . . 61 . Thermal 694 | . 4 . . . 54 . . . . . . . . . . . . . . . . . . 38 6 5 . 5 5 3 12 8 . 40 23 15 5 12 28 7 28 150 246 Explosive . | . . . . . . . . . . . . . . . . . . . . . . . . . . . . . . . . . . . . . . . . . . . . Electromagnetic 1788 | . 120 24 346 23 337 . 98 18 1 5 4 3 12 18 5 . . 4 1 . . . . 13 . . . . . . . . . 13 16 72 25 39 38 11 49 387 106 Robot Hit Streak 93 | . 12 10 13 3 30 1 8 6 24 9 5 9 21 11 8 16 17 11 31 4 23 6 8 32 4 6 . 13 8 4 10 48 . 19 17 28 28 16 30 16 31 93 66 Robot Miss Streak 9 | . 6 3 9 1 4 1 8 1 4 2 3 1 2 1 2 . 2 1 2 1 2 1 2 1 . . . 1 1 1 2 1 . 2 1 1 1 2 1 1 1 3 2 Penetration Max 2 | . . . . . 1 1 2 . 1 . . . 1 . 2 . 1 2 1 1 2 2 1 2 . . . 2 . . 2 2 . . . . . . . . . . . Secondary Targets 15 | . 5 . 9 . 1 . . . . . . . . . . . . . . . . . . . . . . . . . . . . . . . . . . . . . . Max Gunslinging Chain 1 | . 1 . 1 . 1 . . . . . . . . . . . . . . . . . . . . . . . . . . . . . . . . . . . . . . Capacitor 607 | . . . . . . . . . . . . . . . . . . . . . . . . . . . . . . . . . . . . . . 43 66 18 77 283 120 Shots Hit Robots 2703 | . 94 21 246 6 359 4 86 19 72 14 5 8 27 22 58 11 9 60 42 7 59 14 52 148 3 2 . 12 6 2 48 79 . 43 29 69 25 37 57 16 65 493 274 Core Hits 3044 | . 51 9 157 16 70 3 78 21 22 5 3 4 12 26 49 2 4 27 18 3 49 9 19 97 1 2 . 4 3 1 30 40 . 55 24 35 20 22 53 16 65 1682 237 Critical Hits 458 | . . . 2 . 8 3 14 . 22 8 2 2 9 2 43 6 6 39 18 5 28 7 12 62 . . . 8 . . 32 40 . 12 7 5 1 3 8 2 6 27 9 Critical Kills 164 | . . . . . 2 1 7 . 3 3 1 1 3 . 14 . 2 11 7 1 12 1 3 21 . . . 1 . . 13 21 . 6 4 3 1 3 4 1 3 10 1 Critical Parts Destroyed 258 | . . . 2 . 3 2 7 . 5 5 1 . 5 2 29 3 4 27 7 2 16 6 7 40 . . . 7 . . 19 19 . 6 3 2 . . 4 1 3 13 8 Melee Attacks 306 | . . . . . . . . 7 30 3 2 4 2 8 24 2 6 10 2 . 29 7 45 67 . . . . 3 . 33 15 3 4 . . . . . . . . . Impact . | . . . . . . . . . . . . . . . . . . . . . . . . . . . . . . . . . . . . . . . . . . . . Slashing . | . . . . . . . . . . . . . . . . . . . . . . . . . . . . . . . . . . . . . . . . . . . . Piercing 306 | . . . . . . . . 7 30 3 2 4 2 8 24 2 6 10 2 . 29 7 45 67 . . . . 3 . 33 15 3 4 . . . . . . . . . Sneak Attacks 20 | . . . . . . . . 1 . . . . 1 . 2 . . 2 2 . 2 . . 8 . . . . . . 1 1 . . . . . . . . . . . Combat Hostiles 4 | . . . . . . . . . . . . . . . . . . 2 . . . . . 1 . . . . . . . 1 . . . . . . . . . . . Follow-up Attacks . | . . . . . . . . . . . . . . . . . . . . . . . . . . . . . . . . . . . . . . . . . . . . Damage Inflicted 234324 | . 1409 345 5009 423 1251 104 3355 739 1601 388 111 290 637 1818 2585 199 238 1597 902 160 2347 487 1331 6718 62 111 . 501 202 126 1815 2526 . 9896 6212 5342 2295 3972 12327 3817 15827 114257 20992 Guns 30713 | . 1272 280 3027 9 547 104 1624 309 1198 262 38 71 280 41 1502 127 104 1203 762 160 980 307 466 1976 21 . . 240 13 . 870 1532 . . . . . . . . . . 11388 Cannons 72589 | . . . . . . . . . 2 126 73 . 181 53 194 . . 97 6 . . . . 1104 41 111 . 261 189 126 362 363 . 5041 3333 3772 1818 2274 7019 1974 8110 28711 7248 Explosions 123491 | . 137 65 1982 414 339 . 1731 244 . . . 219 54 1604 449 . . . . . 659 . . 1456 . . . . . . . 116 . 4711 2879 1570 477 1615 5308 1843 7717 85546 2356 Melee 7083 | . . . . . . . . 186 401 . . . 122 120 440 72 134 297 134 . 708 180 865 2182 . . . . . . 583 515 . 144 . . . . . . . . . Ramming . | . . . . . . . . . . . . . . . . . . . . . . . . . . . . . . . . . . . . . . . . . . . . Kinetic 15849 | . 21 . . . 91 104 610 . 1198 262 38 71 280 41 1502 127 104 1203 762 160 980 307 466 1976 21 . . 240 13 . 870 1532 . . . . . . . . . 2870 . Thermal 142274 | . 160 65 676 20 454 . 412 244 . . . . 39 237 62 . . . . . . . . 1185 41 111 . 261 189 126 362 479 . 9332 5682 3328 1127 2560 9815 3265 12966 71165 17911 Explosive 1162 | . . . 103 . . . . . . . . . . . 387 . . . . . . . . 270 . . . . . . . . . . . . 106 . 296 . . . . Electromagnetic 67956 | . 1228 280 4230 403 706 . 2333 309 2 126 73 219 196 1420 194 . . 97 6 . 659 . . 1105 . . . . . . . . . 420 530 2014 1062 1412 2216 552 2861 40222 3081 Impact . | . . . . . . . . . . . . . . . . . . . . . . . . . . . . . . . . . . . . . . . . . . . . Slashing . | . . . . . . . . . . . . . . . . . . . . . . . . . . . . . . . . . . . . . . . . . . . . Piercing 7083 | . . . . . . . . 186 401 . . . 122 120 440 72 134 297 134 . 708 180 865 2182 . . . . . . 583 515 . 144 . . . . . . . . . Highest Corruption 21 | . . . . . . . 2 . 21 20 . . 1 2 . . . . . . 6 . . 3 3 3 3 3 . . . 2 2 . 2 2 . . . . . . . Average Corruption 4 | . . . . . . . 1 . 15 11 . . 1 1 . . . . . . 2 . . 2 3 3 3 3 . . . 1 1 . 1 2 . . . . . . . Corruption Purged 24 | . . . . . . . . . 1 21 . . . . . . . . . . . . . . . . . . . . . . 2 . . . . . . . . . . Effects 110 | . . . . . . . 2 . 35 39 . . 1 1 . . . . . . . . . 18 1 . 1 3 . . . . 2 . 1 6 . . . . . . . Message Errors 19 | . . . . . . . 1 . 2 8 . . . . . . . . . . . . . 5 . . 1 . . . . . 1 . . 1 . . . . . . . Matter Fused 15 | . . . . . . . . . 3 10 . . . . . . . . . . . . . 2 . . . . . . . . . . . . . . . . . . . Heat Flow Errors 12 | . . . . . . . . . . 5 . . . . . . . . . . . . . 3 . . . 1 . . . . . . 1 2 . . . . . . . Energy Discharges 6 | . . . . . . . . . . 5 . . . . . . . . . . . . . 1 . . . . . . . . . . . . . . . . . . . Data Loss (minor) 10 | . . . . . . . . . 2 3 . . . . . . . . . . . . . 2 1 . . 1 . . . . 1 . . . . . . . . . . Data Loss (major) 2 | . . . . . . . . . 1 1 . . . . . . . . . . . . . . . . . . . . . . . . . . . . . . . . . Misfires 3 | . . . . . . . . . 1 2 . . . . . . . . . . . . . . . . . . . . . . . . . . . . . . . . . Alerts 3 | . . . . . . . . . . 3 . . . . . . . . . . . . . . . . . . . . . . . . . . . . . . . . . Misdirections 8 | . . . . . . . . . 8 . . . . . . . . . . . . . . . . . . . . . . . . . . . . . . . . . . Targeting Errors 29 | . . . . . . . 1 . 15 2 . . 1 1 . . . . . . . . . 5 . . . 1 . . . . . . . 3 . . . . . . . Weapon Failures 3 | . . . . . . . . . 3 . . . . . . . . . . . . . . . . . . . . . . . . . . . . . . . . . . Overload Shots . | . . . . . . . . . . . . . . . . . . . . . . . . . . . . . . . . . . . . . . . . . . . . Overflow Damage 20133 | . . . 48 . 20 . 15 78 . 28 . . . . 103 . . . . . 107 . . 181 . . . . 30 . 42 89 . 1082 1429 394 135 318 2543 516 1728 10682 565 Projectiles 10614 | . . . . . 20 . . . . 28 . . . . 43 . . . . . . . . 87 . . . . 30 . 36 45 . 316 746 197 86 221 1702 405 996 5094 562 Explosions 9332 | . . . 48 . . . 15 . . . . . . . 60 . . . . . 93 . . 24 . . . . . . . 25 . 766 683 197 49 97 841 111 732 5588 3 Melee 187 | . . . . . . . . 78 . . . . . . . . . . . . 14 . . 70 . . . . . . 6 19 . . . . . . . . . . . Knockbacks 15 | . . . . . . . . . . . . . . . . . . . . . . . . . . . . . . . . . . . . . . . . . . 15 . Impact . | . . . . . . . . . . . . . . . . . . . . . . . . . . . . . . . . . . . . . . . . . . . . Kinetic 15 | . . . . . . . . . . . . . . . . . . . . . . . . . . . . . . . . . . . . . . . . . . 15 . Secondary . | . . . . . . . . . . . . . . . . . . . . . . . . . . . . . . . . . . . . . . . . . . . . Self-Inflicted Damage 1297 | . 215 . 126 38 . . 134 77 . . . . 25 25 66 . . . . . 174 . . . . . . . . . . . . . 1 . 52 . 8 . . 310 46 Shots 71 | . 5 . 3 2 . . 5 2 . . . . 1 1 1 . . . . . 2 . . . . . . . . . . . . . 1 . 1 . 1 . . 37 9 Rammed . | . . . . . . . . . . . . . . . . . . . . . . . . . . . . . . . . . . . . . . . . . . . . Targets Rammed . | . . . . . . . . . . . . . . . . . . . . . . . . . . . . . . . . . . . . . . . . . . . . Kicked . | . . . . . . . . . . . . . . . . . . . . . . . . . . . . . . . . . . . . . . . . . . . . Crushed . | . . . . . . . . . . . . . . . . . . . . . . . . . . . . . . . . . . . . . . . . . . . . Highest Temperature 277 | . 24 . 9 . 9 . 14 2 . 207 26 . 103 21 36 . 10 30 15 . 58 . . 211 136 128 . 129 52 98 98 168 . 183 277 23 . 46 110 75 85 100 54 Average Temperature 57 | . 12 . 4 . 9 . 7 2 . 77 19 . 57 17 23 . 10 19 15 . 21 . . 73 71 49 . 66 45 57 52 70 . 73 89 23 . 25 44 46 41 40 32 Received Heat Transfer 3567 | . 258 69 621 . 69 36 90 18 . 12 . 69 246 141 117 . . 177 8 . 216 9 . 357 18 . . 18 . . 84 61 . 111 87 90 45 18 11 24 83 307 97 Siege Activations . | . . . . . . . . . . . . . . . . . . . . . . . . . . . . . . . . . . . . . . . . . . . . Robots Corrupted 273 | . 1 . 3 . 1 . 4 . . . . 1 1 6 . . . . . . 4 . . 2 . . . . . . . . . 1 3 14 6 5 8 4 17 169 23 Combat Hostiles 252 | . 1 . 2 . 1 . 3 . . . . 1 1 6 . . . . . . . . . 2 . . . . . . . . . 1 3 12 5 4 4 4 15 164 23 Parts Fried 710 | . 5 2 30 . 5 . 23 . . 1 . 1 2 11 7 . . . 1 . 8 . . . . . . . . . . . . 6 7 18 10 23 32 5 28 414 71 Impact Corruptions . | . . . . . . . . . . . . . . . . . . . . . . . . . . . . . . . . . . . . . . . . . . . . Robots Melted 15 | . . . . . . . . . . . . . . . . . . . . . . . . . . . . . . . . . . . . . . 1 . . . . 14 Combat Hostiles 15 | . . . . . . . . . . . . . . . . . . . . . . . . . . . . . . . . . . . . . . 1 . . . . 14 Parts Melted 155 | . . . 1 . 27 . 2 . . . . . . . . . . . . . 1 . . . . . . . . . . . . 5 2 . 1 2 1 2 2 45 64 Heat Transferred 93397 | . 250 . 1000 50 1409 . 500 250 . . . . 50 150 50 . . . . . . . . 1062 37 74 . 185 148 111 296 359 . 6650 3570 2150 600 1955 5260 1980 7219 46405 11627 Parts Sabotaged . | . . . . . . . . . . . . . . . . . . . . . . . . . . . . . . . . . . . . . . . . . . . . Parts Stolen . | . . . . . . . . . . . . . . . . . . . . . . . . . . . . . . . . . . . . . . . . . . . . Parts Stripped . | . . . . . . . . . . . . . . . . . . . . . . . . . . . . . . . . . . . . . . . . . . . . Power Chain Reactions 159 | . 5 1 18 3 3 . 9 2 . . . . 1 2 1 . . . . . . . . 4 . . . . . . . . . . . . . . . . . 109 1 Missiles Intercepted . | . . . . . . . . . . . . . . . . . . . . . . . . . . . . . . . . . . . . . . . . . . . . Alert | -11 -10 -10 -9 -9 -9 -8 -8 -7 -7 -7 -7 -7 -7 -6 -6 -6 -6 -6 -6 -6 -6 -5 -5 -5 -5 -5 -5 -4 -4 -4 -4 -4 -4 -3 -3 -3 -2 -2 -1 -1 -1 -1 -1 ------- Run | Scr Mat Min Mat Min Exi Min Mat Fac Was Fac Low Low Dat Pro Fac Was Fac Ext Cet Arc Hub Fac Was Fac Upp Upp Zhi Pro Fac Was Fac Arm Lab Res Qua Sec Res Tes Acc Gar Acc Com Ac0 Peak Influence 13854 | . 784 413 1543 930 . 41 630 742 259 527 . . . . 756 264 694 503 816 501 906 520 54 1311 . . . . 415 145 800 856 . 1100 663 1026 826 973 2297 2476 3243 13854 . Average Influence 1172 | . 392 349 1171 798 . 21 338 417 259 145 . . . . 299 264 299 225 511 457 502 201 53 422 . . . . 105 145 343 494 . 541 356 636 334 519 1200 2269 2312 8184 . Maximum Alert Level 5 | . 3 2 4 3 . . 2 3 1 2 . . . . 3 1 2 2 3 2 3 2 . 4 . . . . 2 . 3 3 . 4 2 3 3 3 5 5 5 5 . Low Security (%) 20 | 100 33 . 1 . . 100 25 . . 65 . . . . 28 . 12 39 5 . 5 64 100 31 . . . . 95 100 27 . . 13 24 . 33 9 . . . . . Level 1 21 | . 14 90 1 . . . 39 44 100 20 . . . . 41 100 79 56 33 16 29 8 . 32 . . . . . . 35 22 . 10 26 8 41 6 . . . . . Level 2 23 | . 41 9 6 9 . . 35 51 . 14 . . . . 27 . 8 3 36 83 46 26 . 17 . . . . 4 . 24 66 . 62 49 60 21 69 30 . . . . Level 3 7 | . 10 . 12 90 . . . 4 . . . . . . 2 . . . 25 . 18 . . 7 . . . . . . 11 10 . 11 . 30 3 15 6 . . . . Level 4 13 | . . . 78 . . . . . . . . . . . . . . . . . . . . 12 . . . . . . . . . 2 . . . . 51 . 1 . . Level 5 5 | . . . . . . . . . . . . . . . . . . . . . . . . . . . . . . . . . . . . . . . 11 44 . 43 . High Security 6 | . . . . . . . . . . . . . . . . . . . . . . . . . . . . . . . . . . . . . . . . 55 . 56 . Max Security 1 | . . . . . . . . . . . . . . . . . . . . . . . . . . . . . . . . . . . . . . . . . 98 . . Squads Dispatched 139 | . 6 . 13 . . 1 2 1 . 5 . 1 . . 6 . 1 2 . . 4 2 . 9 . . . . 1 . 2 1 . 7 3 3 1 8 11 4 16 29 . Investigation 28 | . 6 . 4 . . . 1 . . 2 . . . . 1 . 1 1 . . 2 2 . 1 . . . . . . . 1 . 3 . . . . 3 . . . . Extermination 13 | . . . . . . . . 1 . 2 . . . . 2 . . . . . . . . 1 . . . . 1 . . . . . 1 . 1 2 2 . . . . Reinforcement 34 | . . . 4 . . 1 1 . . . . . . . 3 . . 1 . . 1 . . 4 . . . . . . 1 . . 4 1 3 . 6 2 . 1 1 . Assault 58 | . . . 5 . . . . . . 1 . 1 . . . . . . . . . . . 3 . . . . . . 1 . . . . . . . 3 4 12 28 . Garrison 6 | . . . . . . . . . . . . . . . . . . . . . 1 . . . . . . . . . . . . . 1 . . . 1 . 3 . . Intercept . | . . . . . . . . . . . . . . . . . . . . . . . . . . . . . . . . . . . . . . . . . . . . Construction Impeded 11 | . . . 2 . . 1 . . . . . . . . 1 . . 1 . . . . . 1 . . . . . . 1 . . 2 . . . . 1 . 1 . . Haulers Reinforced 7 | . . . . . . . . . . . . . . . 2 . . . . . . . . 3 . . . . . . . . . . . 1 . . 1 . . . . Stealth | -11 -10 -10 -9 -9 -9 -8 -8 -7 -7 -7 -7 -7 -7 -6 -6 -6 -6 -6 -6 -6 -6 -5 -5 -5 -5 -5 -5 -4 -4 -4 -4 -4 -4 -3 -3 -3 -2 -2 -1 -1 -1 -1 -1 --------- Run | Scr Mat Min Mat Min Exi Min Mat Fac Was Fac Low Low Dat Pro Fac Was Fac Ext Cet Arc Hub Fac Was Fac Upp Upp Zhi Pro Fac Was Fac Arm Lab Res Qua Sec Res Tes Acc Gar Acc Com Ac0 Distress Signals 49 | . 1 . 1 . . . 4 . . . . . . . 1 . . 2 2 . 6 . . 2 . . . . . . 2 2 . 9 . 2 3 1 3 . . 8 . Communications Jammed . | . . . . . . . . . . . . . . . . . . . . . . . . . . . . . . . . . . . . . . . . . . . . Distress Signals . | . . . . . . . . . . . . . . . . . . . . . . . . . . . . . . . . . . . . . . . . . . . . Times Spotted 1542 | . 32 4 92 15 17 10 35 6 7 7 3 9 4 18 25 . 4 29 10 4 33 7 9 69 7 2 . 7 3 . 23 42 . 38 24 37 26 25 51 41 71 625 71 Peak Tracking Total 88 | . 5 2 8 4 10 9 5 2 5 2 3 7 3 6 6 . 2 5 5 2 7 3 5 8 4 2 . 4 1 . 5 9 . 5 4 4 6 10 8 22 22 88 6 Tactical Retreats 75 | . 3 . 3 2 2 . 1 . 2 . . 1 . 3 4 . . 2 . . . . 2 4 3 . . 2 . . 1 . . 2 1 . 1 1 3 . 1 31 . Traps | -11 -10 -10 -9 -9 -9 -8 -8 -7 -7 -7 -7 -7 -7 -6 -6 -6 -6 -6 -6 -6 -6 -5 -5 -5 -5 -5 -5 -4 -4 -4 -4 -4 -4 -3 -3 -3 -2 -2 -1 -1 -1 -1 -1 ------- Run | Scr Mat Min Mat Min Exi Min Mat Fac Was Fac Low Low Dat Pro Fac Was Fac Ext Cet Arc Hub Fac Was Fac Upp Upp Zhi Pro Fac Was Fac Arm Lab Res Qua Sec Res Tes Acc Gar Acc Com Ac0 Traps Triggered 24 | . . . . . . . . 1 . . . . . . 2 . 1 . . . 1 1 . 3 . . . . 1 . . 1 . 3 1 . 2 2 1 . . 4 . Indirectly 3 | . . . . . . . . . . . . . . . . . . . . . . . . 1 . . . . . . . . . . . . . . . . . 2 . Trap Hack Attempts . | . . . . . . . . . . . . . . . . . . . . . . . . . . . . . . . . . . . . . . . . . . . . Triggered . | . . . . . . . . . . . . . . . . . . . . . . . . . . . . . . . . . . . . . . . . . . . . Disarmed . | . . . . . . . . . . . . . . . . . . . . . . . . . . . . . . . . . . . . . . . . . . . . Reprogrammed . | . . . . . . . . . . . . . . . . . . . . . . . . . . . . . . . . . . . . . . . . . . . . Reused . | . . . . . . . . . . . . . . . . . . . . . . . . . . . . . . . . . . . . . . . . . . . . Traps Extracted . | . . . . . . . . . . . . . . . . . . . . . . . . . . . . . . . . . . . . . . . . . . . . Installed . | . . . . . . . . . . . . . . . . . . . . . . . . . . . . . . . . . . . . . . . . . . . . Triggered 5 | . . . . . . . . . . . . . . . . . . . . . . . . . . . . . . . . . . . . . . . . . . 5 . Machines | -11 -10 -10 -9 -9 -9 -8 -8 -7 -7 -7 -7 -7 -7 -6 -6 -6 -6 -6 -6 -6 -6 -5 -5 -5 -5 -5 -5 -4 -4 -4 -4 -4 -4 -3 -3 -3 -2 -2 -1 -1 -1 -1 -1 ---------- Run | Scr Mat Min Mat Min Exi Min Mat Fac Was Fac Low Low Dat Pro Fac Was Fac Ext Cet Arc Hub Fac Was Fac Upp Upp Zhi Pro Fac Was Fac Arm Lab Res Qua Sec Res Tes Acc Gar Acc Com Ac0 Machines Disabled 148 | . 3 . 9 1 8 1 7 . . 2 . . 1 . 5 . . 4 . 1 10 . . 8 . . . . . . 1 6 1 3 11 33 1 4 3 2 3 9 11 Max in Single Turn 24 | . 2 . 2 1 2 1 1 . . 1 . . 1 . 4 . . 1 . 1 6 . . 2 . . . . . . 1 1 1 1 2 24 1 1 1 1 1 2 2 Garrison Access 17 | . . . . . . . 1 . . 1 . . . . 1 . 1 . . . 2 . . 3 . . . . 1 . 1 . . . 1 1 1 1 2 . . . . Garrison Relay 1 | . . . . . . . . . . . . . . . . . . . . . . . . . . . . . . . . . . . . . . . . 1 . . . Phase Generator 1 | . . . . . . . . . . . . . . . . . . . . . . . . . . . . . . . . . . . . . . . . . . 1 . Network Hub 4 | . . . . . . . . . . . . . . . . . . . . . 4 . . . . . . . . . . . . . . . . . . . . . . Energy Cycler 2 | . . . . . . . . . . . . . . . . . . . . . . . . . . . . . . . . 1 . . . . . . . . 1 . . Machines Sabotaged . | . . . . . . . . . . . . . . . . . . . . . . . . . . . . . . . . . . . . . . . . . . . . Garrisons Compromised . | . . . . . . . . . . . . . . . . . . . . . . . . . . . . . . . . . . . . . . . . . . . . Overloaded Fab Kills . | . . . . . . . . . . . . . . . . . . . . . . . . . . . . . . . . . . . . . . . . . . . . Fab Network Shutdowns 11 | . . . . . . . . 1 . 1 . . . . 1 . 1 . . . . . . 1 . . . . 1 . 1 . . 1 . . 1 1 1 . . . . Hacking | -11 -10 -10 -9 -9 -9 -8 -8 -7 -7 -7 -7 -7 -7 -6 -6 -6 -6 -6 -6 -6 -6 -5 -5 -5 -5 -5 -5 -4 -4 -4 -4 -4 -4 -3 -3 -3 -2 -2 -1 -1 -1 -1 -1 --------- Run | Scr Mat Min Mat Min Exi Min Mat Fac Was Fac Low Low Dat Pro Fac Was Fac Ext Cet Arc Hub Fac Was Fac Upp Upp Zhi Pro Fac Was Fac Arm Lab Res Qua Sec Res Tes Acc Gar Acc Com Ac0 Machines Accessed 195 | . 9 . 7 1 2 . 9 8 . 4 1 . 4 . 6 . 5 19 . . 13 4 . 18 . . 4 . 4 . 7 4 2 5 12 11 6 9 11 . 1 8 1 Terminals 133 | . 7 . 5 1 . . 7 6 . 2 . . . . 3 . 3 18 . . 11 3 . 11 . . . . 2 . 5 3 . 4 8 10 3 6 7 . . 8 . Fabricators 18 | . . . . . . . . 2 . 1 . . . . 2 . 1 . . . . 1 . 1 . . . . 1 . 1 1 . 1 . . 2 2 2 . . . . Repair Stations 2 | . . . 1 . . . . . . . . . . . . . . . . . . . . 1 . . . . . . . . . . . . . . . . . . . Recycling Units 6 | . 2 . 1 . . . 1 . . . . . . . . . . 1 . . . . . 1 . . . . . . . . . . . . . . . . . . . Scanalyzers 4 | . . . . . . . . . . . . . . . . . . . . . . . . 1 . . . . . . . . . . 3 . . . . . . . . Garrison Access 18 | . . . . . . . 1 . . 1 . . . . 1 . 1 . . . 2 . . 3 . . . . 1 . 1 . . . 1 1 1 1 2 . 1 . . Total Hacks 937 | . 30 . 22 4 5 . 29 28 . 12 1 . 27 . 38 . 23 102 . . 76 36 . 78 . . 17 . 23 . 24 20 19 38 47 45 40 56 56 . 1 30 10 Successful 756 | . 19 . 16 4 5 . 25 21 . 8 1 . 27 . 32 . 17 90 . . 52 28 . 61 . . 17 . 18 . 22 16 19 33 40 36 36 50 34 . 1 18 10 Failed 177 | . 10 . 6 . . . 4 7 . 4 . . . . 6 . 5 11 . . 24 7 . 17 . . . . 5 . 2 4 . 5 7 9 4 6 22 . . 12 . Catastrophic 19 | . . . . . . . . 1 . . . . . . 1 . . 3 . . 2 . . 1 . . . . . . . 2 . 1 . 1 . 1 4 . . 2 . Database Lockouts 6 | . 2 . . . . . . . . . . . . . . . 2 1 . . . 1 . . . . . . . . . . . . . . . . . . . . . Manual 639 | . 28 . 19 4 1 . 24 20 . 8 . . . . 25 . 14 86 1 . 65 25 . 47 . . . . 14 . 17 18 . 32 43 37 26 37 26 . . 22 . Terminals 692 | . 28 . 19 4 . . 27 22 . 8 . . . . 20 . 14 101 . . 73 24 . 60 . . . . 12 . 15 19 . 31 43 44 22 37 39 . . 30 . Fabricators 132 | . . . . . . . . 6 . 3 . . . . 17 . 8 . . . . 12 . 10 . . . . 10 . 8 1 . 7 . . 17 18 15 . . . . Repair Stations 4 | . . . 2 . . . . . . . . . . . . . . . . . . . . 2 . . . . . . . . . . . . . . . . . . . Recycling Units 6 | . 2 . 1 . . . 1 . . . . . . . . . . 1 . . . . . 1 . . . . . . . . . . . . . . . . . . . Scanalyzers 5 | . . . . . . . . . . . . . . . . . . . . . . . . 2 . . . . . . . . . . 3 . . . . . . . . Garrison Access 19 | . . . . . . . 1 . . 1 . . . . 1 . 1 . . . 3 . . 3 . . . . 1 . 1 . . . 1 1 1 1 2 . 1 . . Terminal Hacks 452 | . 10 . 4 2 5 . 13 8 . 2 1 . 27 . 10 . 6 74 . . 36 14 . 31 . . 17 . 5 . 9 12 19 20 27 24 13 26 16 . . 11 10 Record 50 | . . . . . 4 . . . . . . . 11 . . . . . . . . . . 1 . . 5 . . . . . 19 . . . . . . . . . 10 Part Schematic 56 | . . . . . . . . 4 . . . . 7 . 4 . 1 4 . . . 2 . 8 . . 4 . 2 . 2 2 . 5 3 3 . 4 1 . . . . Robot Schematic 6 | . . . . . . . . . . . . . 6 . . . . . . . . . . . . . . . . . . . . . . . . . . . . . . Robot Analysis 4 | . . . . . . . . . . . . . . . . . . . . . . . . . . . 4 . . . . . . . . . . . . . . . . Prototype ID Bank 40 | . 1 . . . . . . . . . . . 3 . . . . 28 . . 1 . . . . . 4 . . . . . . . 2 . . . 1 . . . . Open Door 15 | . . . . . . . . . . . 1 . . . . . 1 9 . . . . . . . . . . . . . 1 . . . 2 . . . . . 1 . Level Access Points 7 | . . . . . . . . . . . . . . . . . . . . . 4 . . . . . . . . . . . . . . 1 . . 1 . . 1 . Branch Access Points 10 | . 1 . . . . . . 1 . . . . . . 1 . 1 . . . 1 . . 1 . . . . . . 1 . . 1 . . 1 . 1 . . . . Emergency Access Points 1 | . . . . . . . . . . . . . . . . . . . . . . . . . . . . . . . . . . . . . . . 1 . . . . Machine Index 1 | . . . . . . . . . . . . . . . . . . . . . . . . . . . . . . . . . . . . 1 . . . . . . . Terminal Index 17 | . . . . . . . . 1 . 1 . . . . 1 . . 1 . . 1 1 . 1 . . . . 1 . 1 1 . 1 1 1 1 1 2 . . . . Fabricator Index 10 | . . . . . . . . . . . . . . . 1 . 1 . . . . 1 . 1 . . . . 1 . 1 1 . 1 . . 1 1 . . . . . Repair Station Index 1 | . . . . . . . . . . . . . . . . . . . . . . . . 1 . . . . . . . . . . . . . . . . . . . Scanalyzer Index 2 | . . . . . . . . . . . . . . . . . . . . . . . . 1 . . . . 1 . . . . . . . . . . . . . . Garrison Index 1 | . . . . . . . . . . . . . . . . . . . . . . . . . . . . . . . . . . . . . . . 1 . . . . Alert Level 78 | . 3 . 1 1 . . 5 . . 1 . . . . 1 . . 14 . . 12 3 . 7 . . . . . . 1 2 . 4 7 3 3 4 3 . . 3 . Unreport Threat 62 | . . . . . . . 4 . . . . . . . 1 . . 8 . . 6 3 . 7 . . . . . . . 4 . 5 7 6 3 5 3 . . . . Locate Traps 3 | . 1 . . . . . . . . . . . . . . . . . . . . . . 1 . . . . . . . . . . . . . . . . . 1 . Maintenance Status 2 | . . . . . . . . . . . . . . . . . . . . . 1 . . . . . . . . . . . . . . . . . . . . 1 . Recall Investigation 3 | . . . . . . . . . . . . . . . . . 1 1 . . . 1 . . . . . . . . . . . . . . . . . . . . . Recall Extermination 2 | . . . . . . . . . . . . . . . . . . . . . . . . . . . . . . . . . . . . . . 2 . . . . . Recall Reinforcements 4 | . . . . . . . . . . . . . . . . . . . . . 1 . . . . . . . . . . . . . . . . 3 . . . . . Hauler Manifests 10 | . . . 1 . . . 1 1 . . . . . . . . . 1 . . . 1 . . . . . . . . 1 . . . . 2 1 1 . . . . . Registered Components 1 | . . . . . . . . . . . . . . . . . . . . . . . . . . . . . . . . . . . . . . . . . . 1 . Zone Layout 64 | . 4 . 2 1 . . 3 1 . . . . . . 1 . 1 8 . . 9 2 . 2 . . . . . . 2 1 . 3 7 5 3 5 2 . . 2 . EX-Prototype ID Bank 1 | . . . . . 1 . . . . . . . . . . . . . . . . . . . . . . . . . . . . . . . . . . . . . . Disengage Seal 1 | . . . . . . . . . . . . . . . . . . . . . . . . . . . . . . . . . . . . . . . . . . 1 . Fabricator Hacks 78 | . . . . . . . . 4 . 2 . . . . 11 . 5 . . . . 8 . 7 . . . . 7 . 4 . . 4 . . 10 11 5 . . . . Load Schematic 31 | . . . . . . . . 2 . 1 . . . . 3 . 2 . . . . 4 . 2 . . . . 3 . 2 . . 1 . . 3 5 3 . . . . Build 47 | . . . . . . . . 2 . 1 . . . . 8 . 3 . . . . 4 . 5 . . . . 4 . 2 . . 3 . . 7 6 2 . . . . Repair Station Hacks 3 | . . . 1 . . . . . . . . . . . . . . . . . . . . 2 . . . . . . . . . . . . . . . . . . . Scan Component 2 | . . . 1 . . . . . . . . . . . . . . . . . . . . 1 . . . . . . . . . . . . . . . . . . . Repair 1 | . . . . . . . . . . . . . . . . . . . . . . . . 1 . . . . . . . . . . . . . . . . . . . Recycling Unit Hacks 2 | . . . . . . . . . . . . . . . . . . 1 . . . . . 1 . . . . . . . . . . . . . . . . . . . Retrieve Components 2 | . . . . . . . . . . . . . . . . . . 1 . . . . . 1 . . . . . . . . . . . . . . . . . . . Scanalyzer 5 | . . . . . . . . . . . . . . . . . . . . . . . . 2 . . . . . . . . . . 3 . . . . . . . . Insert Component 4 | . . . . . . . . . . . . . . . . . . . . . . . . 1 . . . . . . . . . . 3 . . . . . . . . Analyze 1 | . . . . . . . . . . . . . . . . . . . . . . . . 1 . . . . . . . . . . . . . . . . . . . Garrison Access Hacks 18 | . . . . . . . 1 . . 1 . . . . 1 . 1 . . . 2 . . 3 . . . . 1 . 1 . . . 1 1 1 1 2 . 1 . . Unlock Access 2 | . . . . . . . . . . . . . . . . . . . . . . . . . . . . . . . . . . . . . . . 1 . 1 . . Seal Access 16 | . . . . . . . 1 . . 1 . . . . 1 . 1 . . . 2 . . 3 . . . . 1 . 1 . . . 1 1 1 1 1 . . . . Unauthorized Hacks 419 | . 21 . 24 4 . . 22 20 . 9 . . . . 20 . 12 30 . . 29 13 . 31 . . . . 10 . 17 8 . 18 18 23 25 24 26 . . 15 . Terminals 150 | . 6 . 10 2 . . 10 9 . 3 . . . . 4 . 2 15 . . 14 3 . 12 . . . . 2 . 5 3 . 6 9 11 6 6 5 . . 7 . Track 17 | . . . 1 1 . . 2 1 . . . . . . 1 . . . . . 3 . . 2 . . . . . . . . . 1 . 1 2 . . . . 2 . Assimilate 24 | . . . 2 . . . . . . 1 . . . . . . 1 3 . . 1 . . 4 . . . . 1 . 1 2 . 1 3 3 . 1 . . . . . Botnet 94 | . 4 . 4 1 . . 7 6 . 1 . . . . 3 . 1 12 . . 9 3 . 5 . . . . 1 . 4 1 . 3 6 5 3 5 5 . . 5 . Detonate 1 | . . . . . . . . . . . . . . . . . . . . . . . . . . . . . . . . . . . . 1 . . . . . . . Operators 9 | . . . . . . . 1 2 . 1 . . . . . . . . . . 1 . . 1 . . . . . . . . . 1 . 1 1 . . . . . . Sabotage 5 | . 2 . 3 . . . . . . . . . . . . . . . . . . . . . . . . . . . . . . . . . . . . . . . . Fabricators 43 | . . . . . . . . . . . . . . . 6 . 3 . . . . 3 . 3 . . . . 3 . 3 1 . 3 . . 6 6 6 . . . . Report 14 | . . . . . . . . . . . . . . . 2 . 1 . . . . 1 . 1 . . . . 1 . 1 . . 1 . . 2 2 2 . . . . Prioritize 14 | . . . . . . . . . . . . . . . 2 . 1 . . . . 1 . 1 . . . . 1 . 1 . . 1 . . 2 2 2 . . . . Siphon 14 | . . . . . . . . . . . . . . . 2 . 1 . . . . 1 . 1 . . . . 1 . 1 . . 1 . . 2 2 2 . . . . Download 1 | . . . . . . . . . . . . . . . . . . . . . . . . . . . . . . . . 1 . . . . . . . . . . . Repair Stations . | . . . . . . . . . . . . . . . . . . . . . . . . . . . . . . . . . . . . . . . . . . . . Recycling Units 4 | . 2 . 1 . . . 1 . . . . . . . . . . . . . . . . . . . . . . . . . . . . . . . . . . . . Tunnel 4 | . 2 . 1 . . . 1 . . . . . . . . . . . . . . . . . . . . . . . . . . . . . . . . . . . . Scanalyzers . | . . . . . . . . . . . . . . . . . . . . . . . . . . . . . . . . . . . . . . . . . . . . Garrison Access . | . . . . . . . . . . . . . . . . . . . . . . . . . . . . . . . . . . . . . . . . . . . . Data Cores Recovered 2 | . . . . . . . . . . . . . . . . . . . . . . . . . . . . . . . . . . . . 1 . . 1 . . . . Used 1 | . . . . . . . . . . . . . . . . . . . . . . . . . . . . . . . . . . . . 1 . . . . . . . Hacking Detections 92 | . 4 . 4 . . . 5 8 . 3 . . . . 4 . 3 9 . . 7 1 . 6 . . . . 3 . 2 2 . 3 3 5 4 3 9 . . 4 . Full Trace Events 8 | . 1 . . . . . . . . 1 . . . . 1 . . . . . . 1 . 1 . . . . . . . . . . . . . . 3 . . . . Feedback Events 2 | . . . . . . . . . . . . . . . . . . . . . . . . 1 . . . . . . . . . . . . . . 1 . . . . Corruption 1 | . . . . . . . . . . . . . . . . . . . . . . . . 1 . . . . . . . . . . . . . . . . . . . Hackware Fried 1 | . . . . . . . . . . . . . . . . . . . . . . . . . . . . . . . . . . . . . . . 1 . . . . Feedback Blocked . | . . . . . . . . . . . . . . . . . . . . . . . . . . . . . . . . . . . . . . . . . . . . Robot Schematics Acquired 6 | . . . . . . . . . . . . . 6 . . . . . . . . . . . . . . . . . . . . . . . . . . . . . . Robots Built . | . . . . . . . . . . . . . . . . . . . . . . . . . . . . . . . . . . . . . . . . . . . . Matter . | . . . . . . . . . . . . . . . . . . . . . . . . . . . . . . . . . . . . . . . . . . . . Time . | . . . . . . . . . . . . . . . . . . . . . . . . . . . . . . . . . . . . . . . . . . . . Total Robot Build Rating . | . . . . . . . . . . . . . . . . . . . . . . . . . . . . . . . . . . . . . . . . . . . . Part Schematics Acquired 57 | . . . . . . . . 4 . . . . 7 . 4 . 1 4 . . . 2 . 9 . . 4 . 1 . 2 3 . 5 3 3 . 4 1 . . . . Parts Built 41 | . . . . . . . . 4 . 1 . . . . 5 . 3 . . . . 6 . 4 . . . . 3 . 3 . . 2 . . 4 4 2 . . . . Matter 9924 | . . . . . . . . 380 . 190 . . . . 1270 . 711 . . . . 715 . 1140 . . . . 877 . 510 . . 729 . . 1248 1353 801 . . . . Time 2339 | . . . . . . . . 142 . 47 . . . . 252 . 304 . . . . 140 . 231 . . . . 373 . 119 . . 166 . . 220 203 142 . . . . Total Part Build Rating 270 | . . . . . . . . 20 . 5 . . . . 30 . 15 . . . . 25 . 28 . . . . 21 . 19 . . 18 . . 36 36 17 . . . . Parts Repaired 1 | . . . . . . . . . . . . . . . . . . . . . . . . 1 . . . . . . . . . . . . . . . . . . . Time 51 | . . . . . . . . . . . . . . . . . . . . . . . . 51 . . . . . . . . . . . . . . . . . . . Parts Recycled . | . . . . . . . . . . . . . . . . . . . . . . . . . . . . . . . . . . . . . . . . . . . . Recycled Matter . | . . . . . . . . . . . . . . . . . . . . . . . . . . . . . . . . . . . . . . . . . . . . Retrieved Matter . | . . . . . . . . . . . . . . . . . . . . . . . . . . . . . . . . . . . . . . . . . . . . Retrieved Components 7 | . . . . . . . . . . . . . . . . . . 7 . . . . . . . . . . . . . . . . . . . . . . . . . Parts Scanalyzed 1 | . . . . . . . . . . . . . . . . . . . . . . . . 1 . . . . . . . . . . . . . . . . . . . Part Schematics Acquired 1 | . . . . . . . . . . . . . . . . . . . . . . . . 1 . . . . . . . . . . . . . . . . . . . Parts Damaged . | . . . . . . . . . . . . . . . . . . . . . . . . . . . . . . . . . . . . . . . . . . . . Bothacking | -11 -10 -10 -9 -9 -9 -8 -8 -7 -7 -7 -7 -7 -7 -6 -6 -6 -6 -6 -6 -6 -6 -5 -5 -5 -5 -5 -5 -4 -4 -4 -4 -4 -4 -3 -3 -3 -2 -2 -1 -1 -1 -1 -1 ------------ Run | Scr Mat Min Mat Min Exi Min Mat Fac Was Fac Low Low Dat Pro Fac Was Fac Ext Cet Arc Hub Fac Was Fac Upp Upp Zhi Pro Fac Was Fac Arm Lab Res Qua Sec Res Tes Acc Gar Acc Com Ac0 Used RIF Installer . | . . . . . . . . . . . . . . . . . . . . . . . . . . . . . . . . . . . . . . . . . . . . Robots Hacked 1 | . . . . . . . . . . . . . . . . . . . . . . . . . . . . . 1 . . . . . . . . . . . . . . Non-combat 1 | . . . . . . . . . . . . . . . . . . . . . . . . . . . . . 1 . . . . . . . . . . . . . . Combat . | . . . . . . . . . . . . . . . . . . . . . . . . . . . . . . . . . . . . . . . . . . . . Robot Hacks Applied 1 | . . . . . . . . . . . . . . . . . . . . . . . . . . . . . 1 . . . . . . . . . . . . . . find_chute 1 | . . . . . . . . . . . . . . . . . . . . . . . . . . . . . 1 . . . . . . . . . . . . . . Relay Couplers Released 5 | . . . . . . . . . . . . . . . . . . . . . . . . 1 . . . . . . . . . 1 . . . . 1 2 . . . Machine Destruction 3 | . . . . . . . . . . . . . . . . . . . . . . . . . . . . . . . . . . . . . . . 1 2 . . . Programmers 2 | . . . . . . . . . . . . . . . . . . . . . . . . 1 . . . . . . . . . 1 . . . . . . . . . Robots Rewired 26 | . . . . . . . . 1 . . . . . . . . . 13 . . . . . . . . . . . . . 9 . . . . . 3 . . . . . Allies Hacked 2 | . . . . . . . . . . . . . . . . . . 1 . . . . . . . . . . . . . . . . 1 . . . . . . . . Hacks Repelled . | . . . . . . . . . . . . . . . . . . . . . . . . . . . . . . . . . . . . . . . . . . . . Allies | -11 -10 -10 -9 -9 -9 -8 -8 -7 -7 -7 -7 -7 -7 -6 -6 -6 -6 -6 -6 -6 -6 -5 -5 -5 -5 -5 -5 -4 -4 -4 -4 -4 -4 -3 -3 -3 -2 -2 -1 -1 -1 -1 -1 -------- Run | Scr Mat Min Mat Min Exi Min Mat Fac Was Fac Low Low Dat Pro Fac Was Fac Ext Cet Arc Hub Fac Was Fac Upp Upp Zhi Pro Fac Was Fac Arm Lab Res Qua Sec Res Tes Acc Gar Acc Com Ac0 Total Allies 86 | . . 3 2 . . . . 1 . 1 . . . . . . 1 26 5 . 1 . . 4 . . . . 1 20 1 11 . . 2 3 . 4 . . . . . Largest Group 23 | . . 3 3 . . . . 1 . 1 1 . . . . . 1 23 23 11 12 . . 2 . . . . 1 20 1 8 . . 1 2 . 4 . . . . . Highest-Rated Group 1113 | . . 40 40 . . . . 32 . 10 10 . . . . . 26 780 1113 641 667 . . 20 . . . . 26 747 26 428 . . 44 70 . 281 . . . . . Highest-Rated Ally 156 | . . 16 16 . . . . 32 . 10 10 . . . . . 26 156 150 94 94 . . 10 . . . . 26 50 26 60 . . 44 44 . 79 . . . . . Total Orders 12 | . . . . . . . . . . . . . . . . . . . 7 . 4 . . . . . . . 1 . . . . . . . . . . . . . . STAY 3 | . . . . . . . . . . . . . . . . . . . 2 . . . . . . . . . 1 . . . . . . . . . . . . . . GOTO 6 | . . . . . . . . . . . . . . . . . . . 2 . 4 . . . . . . . . . . . . . . . . . . . . . . ROAM 1 | . . . . . . . . . . . . . . . . . . . 1 . . . . . . . . . . . . . . . . . . . . . . . . FOLLOW 2 | . . . . . . . . . . . . . . . . . . . 2 . . . . . . . . . . . . . . . . . . . . . . . . Ally Attacks 423 | . . 2 66 . . . . 4 . . . . . . . . . 107 73 14 81 . . . . . . . . . . 55 . . . . . 21 . . . . . Total Damage 10212 | . . 33 701 . . . . 181 . . . . . . . . . 2132 1486 444 2736 . . . . . . . . . . 1424 . . . . . 1075 . . . . . Kills 71 | . . . 14 . . . . 1 . . . . . . . . . 16 11 3 16 . . . . . . . . . . 7 . . . . . 3 . . . . . Allies Corrupted 5 | . . . . . . . . . . . . . . . . . . . . . 4 . . . . . . . . . . 1 . . . . . . . . . . . Allies Melted . | . . . . . . . . . . . . . . . . . . . . . . . . . . . . . . . . . . . . . . . . . . . . Intel | -11 -10 -10 -9 -9 -9 -8 -8 -7 -7 -7 -7 -7 -7 -6 -6 -6 -6 -6 -6 -6 -6 -5 -5 -5 -5 -5 -5 -4 -4 -4 -4 -4 -4 -3 -3 -3 -2 -2 -1 -1 -1 -1 -1 ------- Run | Scr Mat Min Mat Min Exi Min Mat Fac Was Fac Low Low Dat Pro Fac Was Fac Ext Cet Arc Hub Fac Was Fac Upp Upp Zhi Pro Fac Was Fac Arm Lab Res Qua Sec Res Tes Acc Gar Acc Com Ac0 Robot Analysis Total 4 | . . . . . . . . . . . . . . . . . . . . . . . . . . . 4 . . . . . . . . . . . . . . . . Derelict Logs Recovered 7 | . . 2 . 1 . . . . . . . . . . . . . . . . . . . . 2 . . 2 . . . . . . . . . . . . . . . Drone Launches . | . . . . . . . . . . . . . . . . . . . . . . . . . . . . . . . . . . . . . . . . . . . . Drone Recoveries . | . . . . . . . . . . . . . . . . . . . . . . . . . . . . . . . . . . . . . . . . . . . . Exploration | -11 -10 -10 -9 -9 -9 -8 -8 -7 -7 -7 -7 -7 -7 -6 -6 -6 -6 -6 -6 -6 -6 -5 -5 -5 -5 -5 -5 -4 -4 -4 -4 -4 -4 -3 -3 -3 -2 -2 -1 -1 -1 -1 -1 ------------- Run | Scr Mat Min Mat Min Exi Min Mat Fac Was Fac Low Low Dat Pro Fac Was Fac Ext Cet Arc Hub Fac Was Fac Upp Upp Zhi Pro Fac Was Fac Arm Lab Res Qua Sec Res Tes Acc Gar Acc Com Ac0 Turns Passed 23892 | 24 595 187 3065 258 854 29 605 520 313 1246 112 119 196 236 1333 96 329 460 256 54 642 258 324 1823 145 72 54 80 421 74 768 514 238 771 507 662 729 812 443 59 259 2380 970 Spaces Moved 32231 | 40 644 256 2113 673 535 45 893 849 338 560 251 232 145 305 778 212 252 681 305 49 1086 298 463 2594 511 168 160 217 361 227 741 706 166 859 1082 1437 1104 1238 1161 174 531 4419 2372 Core 246 | 40 202 . . . . . . . . . . . . . . . . 2 . . . . . . . . . . . . . 2 . . . . . . . . . . . Treads . | . . . . . . . . . . . . . . . . . . . . . . . . . . . . . . . . . . . . . . . . . . . . Legs . | . . . . . . . . . . . . . . . . . . . . . . . . . . . . . . . . . . . . . . . . . . . . Wheels . | . . . . . . . . . . . . . . . . . . . . . . . . . . . . . . . . . . . . . . . . . . . . Hover . | . . . . . . . . . . . . . . . . . . . . . . . . . . . . . . . . . . . . . . . . . . . . Flight 31985 | . 442 256 2113 673 535 45 893 849 338 560 251 232 145 305 778 212 252 679 305 49 1086 298 463 2594 511 168 160 217 361 227 741 704 166 859 1082 1437 1104 1238 1161 174 531 4419 2372 Fastest Speed 5 | 50 37 37 29 29 29 29 29 29 34 34 34 34 34 31 26 26 14 14 26 26 14 26 26 14 20 26 26 26 26 26 14 26 26 21 21 21 18 5 18 18 6 5 5 Average Speed 24 | 50 41 37 29 29 29 29 29 31 34 34 34 34 52 31 28 26 25 26 26 26 25 26 26 25 25 26 26 26 26 26 25 26 26 24 21 21 20 17 18 18 16 17 17 Slowest Speed 150 | 50 50 37 34 29 99 29 102 34 34 34 34 34 114 34 31 26 99 150 26 26 26 26 26 26 26 26 26 26 26 26 26 150 26 26 21 21 21 18 18 18 18 76 21 Overloaded Moves 298 | . . . . . . . . . . . . . . . . . 7 13 . . 53 . . 3 64 . . . . . 8 . . . . . . 2 . . 74 37 37 Propulsion Burnouts . | . . . . . . . . . . . . . . . . . . . . . . . . . . . . . . . . . . . . . . . . . . . . Robots Hopped 225 | . 4 4 35 5 . 5 12 2 . 6 . . . . 5 . . 8 . . 26 5 . 5 . . . . 2 . 9 5 . 12 . 19 10 14 7 4 9 11 1 Cave-ins Triggered . | . . . . . . . . . . . . . . . . . . . . . . . . . . . . . . . . . . . . . . . . . . . . Teleports 3 | . . . . . . . . . . . . . . . . . . . . . . . . . . . . . . . . 1 . . . . . . . . . 1 1 Exploration Rate (%) 58 | 3 91 70 91 96 89 14 90 26 96 17 43 50 74 59 17 90 9 84 57 77 89 9 86 63 71 40 62 52 8 90 29 56 96 30 95 86 32 95 31 36 17 89 90 Regions Visited 43 Branch Regions 23 Pre-discovered Areas 11 | . 2 1 1 . 1 . 1 . . . . . 1 . . . . . . . . . . . 1 . 3 . . . . . . . . . . . . . . . . Known Exits Taken 30 | . 1 . 1 . . 1 1 . . 1 1 1 1 1 . . 1 1 1 1 1 . . 1 1 1 1 1 . . 1 1 1 1 1 1 1 1 1 . 1 1 . Unknown Exits Taken 4 | 1 . 1 . 1 1 . . . . . . . . . . . . . . . . . . . . . . . . . . . . . . . . . . . . . . Scrap Searched 12 | . . 3 . 1 . . . . . . 1 1 . . . . . . . . . . . . 4 . . 2 . . . . . . . . . . . . . . . Spaces Dug 380 | . . . . 5 . . 5 3 . . 2 4 . . 10 . . . . . 2 1 . 42 5 2 . . 2 . 21 . . 11 18 40 17 14 37 . 68 17 54 Terrain Destroyed 3025 | . 25 9 73 12 4 2 40 4 1 5 2 4 8 13 52 . . 1 6 2 292 1 . 105 5 3 . . 3 . 29 26 . 204 149 105 68 69 262 60 192 806 383 Melee 78 | . . . . . . . . 3 . . 2 4 . . 10 . . . . . 2 1 . 32 . . . . 2 . 21 . . 1 . . . . . . . . . Projectile 273 | . . . . . . 2 9 . 1 5 . . 1 . 2 . . 1 6 2 2 . . 17 5 3 . . 1 . 8 2 . 8 3 4 1 2 7 . 5 4 172 AOE 2674 | . 25 9 73 12 4 . 31 1 . . . . 7 13 40 . . . . . 288 . . 56 . . . . . . . 24 . 195 146 101 67 67 255 60 187 802 211 Actions | -11 -10 -10 -9 -9 -9 -8 -8 -7 -7 -7 -7 -7 -7 -6 -6 -6 -6 -6 -6 -6 -6 -5 -5 -5 -5 -5 -5 -4 -4 -4 -4 -4 -4 -3 -3 -3 -2 -2 -1 -1 -1 -1 -1 --------- Run | Scr Mat Min Mat Min Exi Min Mat Fac Was Fac Low Low Dat Pro Fac Was Fac Ext Cet Arc Hub Fac Was Fac Upp Upp Zhi Pro Fac Was Fac Arm Lab Res Qua Sec Res Tes Acc Gar Acc Com Ac0 Total 45523 | 42 839 319 4237 707 899 51 1142 1074 459 1595 269 260 236 418 1813 245 500 908 454 85 1356 456 564 3524 522 193 171 233 676 239 1229 966 355 1343 1326 1717 1578 1798 1380 195 687 5658 2805 Wait 8915 | . 92 55 1871 6 113 5 69 176 26 1012 8 . 24 60 919 7 221 90 74 27 206 130 4 598 4 5 5 1 299 2 369 91 166 384 181 170 429 451 144 4 42 325 50 Move 31760 | 39 635 247 2046 662 534 36 869 845 337 548 250 231 144 304 768 211 251 665 304 48 1035 290 462 2583 510 167 159 216 357 226 722 696 165 836 1081 1398 1084 1209 1146 167 512 4396 2369 Hop 204 | . 4 4 31 5 . 3 11 2 . 5 . . . . 5 . . 7 . . 24 3 . 5 . . . . 2 . 9 4 . 10 . 19 9 14 7 2 7 11 1 Pick Up 84 | . 2 . 10 1 3 . 2 1 1 2 . . 5 . . 2 . . 1 . . 1 1 5 . . 1 . . . 1 . 2 . 4 . 2 3 2 . 5 16 11 Fast Attach 164 | 3 6 1 13 1 11 . 9 8 . . . . 2 2 5 . 4 . . . 1 1 1 3 . . 3 . 2 . 2 11 8 3 1 15 5 19 . . . 9 15 Attach 23 | . . . 1 . . . 2 . . . . . 3 . 1 . . . . . . . . 1 . . 1 . . . . 1 1 . . . . 1 2 . . 4 5 Detach 7 | . . . . . 1 . 2 . . . . . . . . . . . . . . . . . . . . . . . . . 2 . . . . . . . . 1 1 Swap 90 | . . . 3 1 9 . 7 4 2 2 2 1 3 1 1 . 1 . 3 . . 2 . 10 . . . . 3 . . 1 1 . . . . 2 . . . 20 11 Drop 202 | . 2 . 15 2 15 . 10 10 1 3 . . 7 . 5 1 1 . 2 . . 3 2 10 . . 2 . 3 . 2 11 7 3 6 5 6 19 1 . 4 24 20 Fire 2535 | . 64 12 148 21 189 7 95 9 61 20 7 9 29 22 71 9 7 62 46 8 50 10 24 160 8 5 . 13 7 3 54 78 . 53 39 87 30 51 66 18 77 598 208 Melee 306 | . . . . . . . . 7 30 3 2 4 2 8 24 2 6 10 2 . 29 7 45 67 . . . . 3 . 33 15 3 4 . . . . . . . . . Ram . | . . . . . . . . . . . . . . . . . . . . . . . . . . . . . . . . . . . . . . . . . . . . Kick . | . . . . . . . . . . . . . . . . . . . . . . . . . . . . . . . . . . . . . . . . . . . . Crush . | . . . . . . . . . . . . . . . . . . . . . . . . . . . . . . . . . . . . . . . . . . . . Escape Stasis 45 | . . . . . . . . . . . . . . . 6 . . . . . . . . 22 . . . . . . . . . 6 3 . . 8 . . . . . Rewire 71 | . . . . . . . . 5 . . . . . . . . . 27 . . . . . . . . . . . . . 35 . . 1 . . 3 . . . . . Trap . | . . . . . . . . . . . . . . . . . . . . . . . . . . . . . . . . . . . . . . . . . . . . Miscellaneous 1117 | . 34 . 99 8 24 . 66 7 1 . . 15 17 21 8 13 9 47 22 2 11 9 25 60 . 16 . 3 . 8 37 23 . 44 10 23 13 18 12 4 40 254 114 Route ------- -11/Scrapyard -10/Materials (discovered 5 exits: *Mat x3 / *Min x2) -10/Mines (discovered 2 exits: *Mat x2) -9/Materials (discovered 5 exits: *Mat x3 / *Min x2) -9/Mines (discovered 3 exits: *Mat x2 / *Exi) -9/Exiles (discovered 2 exits: [*Min x2]) -8/Mines -8/Materials (discovered 3 exits: *Fac x3) -7/Factory (discovered 3 exits: Sto / Low x2) -7/Waste -7/Factory -7/Lower Caves -7/Lower Caves -7/Data Miner -6/Proximity Caves -6/Factory (discovered 4 exits: Low x2 / Ext x2) -6/Waste -6/Factory (discovered 4 exits: Low x2 / *Ext x2) -6/Extension (discovered 3 exits: *Fac x2 / *Cet) -6/Cetus (discovered 2 exits: *Fac / *Arc) -6/Archives (discovered 2 exits: *Hub x2) -6/Hub_04(d) (discovered 4 exits: *Fac x4) -5/Factory -5/Waste -5/Factory (discovered 3 exits: *Fac / *Upp x2) -5/Upper Caves -5/Upper Caves -5/Zhirov -4/Proximity Caves -4/Factory -4/Waste -4/Factory (discovered 4 exits: *Res / Upp x2 / *Arm) -4/Armory -4/Lab -3/Research (discovered 3 exits: *Res / *Qua x2) -3/Quarantine (discovered 2 exits: *Res / *Sec) -3/Section 7 -2/Research (discovered 3 exits: Acc / *Tes x2) -2/Testing -1/Access (discovered 3 exits: Sur / Com / Gar) -1/Garrison -1/Access (discovered 2 exits: *Com / Gar) -1/Command (discovered 3 exits: *Sur x2 / *Ac0) -1/Access_0 0b11 Command History --------- Turn | Location | Event 5 | -11/Scrapyard | Upgraded with Propulsion slot (x1) 5 | -11/Scrapyard | Upgraded with Utility slot (x2) 5 | -11/Scrapyard | Upgraded with Weapon slot (x1) 14 | -11/Scrapyard | Discovered new exit (range 15) 25 | -11/Scrapyard | Entered Materials 69 | -10/Materials | Discovered new exit (range 7) 72 | -10/Materials | Discovered new exit (range 14) 176 | -10/Materials | Discovered new exit (range 10) 287 | -10/Materials | Reached level 2 302 | -10/Materials | Upgraded with Utility slot (x1) 315 | -10/Materials | Build established: Mutant 368 | -10/Materials | Core integrity fell below 50% 376 | -10/Materials | Discovered new exit (range 4) 449 | -10/Materials | Discovered new exit (range 13) 508 | -10/Materials | Reached level 3 525 | -10/Materials | Upgraded with Utility slot (x1) 549 | -10/Materials | Identified exit to Mines 549 | -10/Materials | Central database locked down 620 | -10/Materials | Entered Mines 621 | -10/Mines | Learned location of Storage (-7) 645 | -10/Mines | Learned 4 Materials zone layouts 680 | -10/Mines | Assisted by bots powering up and referring to "LRC-V3" 704 | -10/Mines | Discovered new exit (range 15) 763 | -10/Mines | Discovered new exit (range 7) 790 | -10/Mines | Reached level 4 794 | -10/Mines | Upgraded with Propulsion slot (x1) 807 | -10/Mines | Entered Materials 807 | -9/Materials | Accompanied by 3 allies 808 | -9/Materials | Identified exit to Mines 809 | -9/Materials | Identified exit to Materials 809 | -9/Materials | Reached level 5 809 | -9/Materials | Upgraded with Utility slot (x1) 929 | -9/Materials | Reached level 6 935 | -9/Materials | Upgraded with Weapon slot (x1) 1129 | -9/Materials | Reached level 7 1194 | -9/Materials | Build established: Sprinter 1200 | -9/Materials | Discovered exit to Materials (range 16) 1291 | -9/Materials | Discovered exit to Materials (range 11) 1362 | -9/Materials | Reached level 8 1448 | -9/Materials | Upgraded with Utility slot (x1) 1676 | -9/Materials | Reached level 9 1720 | -9/Materials | Build established: Scavenger-Sprinter 2007 | -9/Materials | First assault squad dispatched 3711 | -9/Materials | Reached level 10 3737 | -9/Materials | Destroyed 7 combat bots 3872 | -9/Materials | Entered Mines 3971 | -9/Mines | Discovered exit to Materials (range 11) 3976 | -9/Mines | Discovered new exit (range 10) 3985 | -9/Mines | Learned Materials emergency access door positions 3991 | -9/Mines | Discovered exit to Materials (range 12) 3993 | -9/Mines | A weapon hastily lodged in a ceiling crevice suddenly fell to the ground 4118 | -9/Mines | Deemed a non-threat by the Exiles lab entrance 4130 | -9/Mines | Entered Exiles 4135 | -9/Exiles | Discovered new exit (range 15) 4137 | -9/Exiles | Met 8R-AWN 4142 | -9/Exiles | Met EX-HEX 4154 | -9/Exiles | Met EX-DEC 4155 | -9/Exiles | Learned location of Zion (-6) 4160 | -9/Exiles | Met EX-BIN 4164 | -9/Exiles | Aligned with FarCom system 4164 | -9/Exiles | Given EX-Vault access code 4171 | -9/Exiles | Opened EX-Vault 4174 | -9/Exiles | Found Superbattery 4185 | -9/Exiles | Warned to stay clear of 0b10 Research branches 4209 | -9/Exiles | Attacked by the Exiles 4259 | -9/Exiles | Destroyed 7 combat bots 4291 | -9/Exiles | Core integrity fell below 50% 4697 | -9/Exiles | Destroyed 8R-AWN 4704 | -9/Exiles | Found Prototype Protection 4704 | -9/Exiles | Identified 8R-AWN's Armor/TH 4722 | -9/Exiles | Found Prototype Device 4722 | -9/Exiles | Identified AS-neutralizer No. 17b 4726 | -9/Exiles | Found Prototype Ballistic Gun 4727 | -9/Exiles | Identified 8R-AWN's Boregun 4845 | -9/Exiles | Destroyed EX-DEC 4898 | -9/Exiles | Destroyed EX-HEX 4932 | -9/Exiles | Destroyed EX-BIN 4936 | -9/Exiles | Found Prototype Device 4936 | -9/Exiles | Identified System Purifier 4979 | -9/Exiles | Discovered new exit (range 14) 4984 | -9/Exiles | Left Exiles lab with Superbattery 4984 | -9/Exiles | Entered Mines 4993 | -8/Mines | Discovered exit to Materials (range 12) 4996 | -8/Mines | Reached level 11 5013 | -8/Mines | Entered Materials 5014 | -8/Materials | Core integrity fell below 50% 5064 | -8/Materials | Reached level 12 5067 | -8/Materials | Upgraded with Power slot (x1) 5222 | -8/Materials | Discovered new exit (range 18) 5340 | -8/Materials | Discovered new exit (range 17) 5429 | -8/Materials | Reached level 13 5454 | -8/Materials | Destroyed 11 combat bots 5467 | -8/Materials | Upgraded with Utility slot (x1) 5599 | -8/Materials | Discovered new exit (range 16) 5617 | -8/Materials | Identified exit to Factory 5618 | -8/Materials | Entered Factory 5620 | -7/Factory | Reached level 14 5689 | -7/Factory | Identified exit to Storage 5689 | -7/Factory | Identified exit to Lower Caves 5863 | -7/Factory | Fabricated Nuclear Pulse Thruster? 5933 | -7/Factory | Build established: Hacker-Scout 6038 | -7/Factory | Fabricated Nuclear Pulse Thruster (x2) 6116 | -7/Factory | Local fabrication network quarantined 6138 | -7/Factory | Manually triggered Chute Trap 6138 | -7/Factory | Sucked down chute 6138 | -7/Factory | Entered Waste 6141 | -7/Waste | Spotted C-40 Crusher 6153 | -7/Waste | EMP discharged 6176 | -7/Waste | Spotted C-40 Crusher 6199 | -7/Waste | Spotted C-40 Crusher 6208 | -7/Waste | Spotted C-40 Crusher 6219 | -7/Waste | Spotted C-40 Crusher 6246 | -7/Waste | Destroyed C-40 Crusher 6253 | -7/Waste | EMP discharged 6253 | -7/Waste | System corruption reached 10% 6285 | -7/Waste | Spotted C-40 Crusher 6293 | -7/Waste | Destroyed C-40 Crusher 6338 | -7/Waste | Destroyed C-40 Crusher 6353 | -7/Waste | EMP discharged 6364 | -7/Waste | Destroyed C-40 Crusher 6377 | -7/Waste | Destroyed C-40 Crusher 6425 | -7/Waste | Destroyed C-40 Crusher 6445 | -7/Waste | Discovered new exit (range 11) 6451 | -7/Waste | Identified exit to Factory 6451 | -7/Waste | Entered Factory 6591 | -7/Factory | Reached level 15 7521 | -7/Factory | Local fabrication network quarantined 7552 | -7/Factory | Fabricated Imp. Armor Integrity Analyzer (x1) 7590 | -7/Factory | Discovered exit to Lower Caves (range 4) 7651 | -7/Factory | First assault squad dispatched 7697 | -7/Factory | Entered Lower Caves 7697 | -7/Lower Caves | Accompanied by 1 ally 7726 | -7/Lower Caves | Attracted the attention of an 0b10 checkpoint 7739 | -7/Lower Caves | Spotted B-75 Beast 7804 | -7/Lower Caves | Discovered new exit (range 10) 7807 | -7/Lower Caves | Identified exit to Lower Caves 7809 | -7/Lower Caves | Entered another Lower Caves area 7809 | -7/Lower Caves | Spotted B-75 Beast 7923 | -7/Lower Caves | Discovered new exit (range 16) 7924 | -7/Lower Caves | Attracted the attention of an 0b10 outpost 7928 | -7/Lower Caves | Identified exit to Data Miner 7928 | -7/Lower Caves | Entered Data Miner 7928 | -7/Data Miner | Discovered new exit (range 7) 7934 | -7/Data Miner | Met Data Miner 7941 | -7/Data Miner | Learned location of Section 7 (-3) 7941 | -7/Data Miner | Acquired the access code to Warlord's prototype stash 7946 | -7/Data Miner | Received God Mode back door access code from Data Miner 7958 | -7/Data Miner | Destroyed Data Miner 7961 | -7/Data Miner | Found Prototype Hackware 7961 | -7/Data Miner | Identified Quantum Router 7963 | -7/Data Miner | Found Prototype Hackware 7963 | -7/Data Miner | Identified Deep Network Scanner 7965 | -7/Data Miner | Found Prototype Hackware 7979 | -7/Data Miner | Data Conduit disabled 8121 | -7/Data Miner | Identified exit to Proximity Caves 8124 | -7/Data Miner | Entered Proximity Caves 8126 | -6/Proximity Caves | Reached level 16 8126 | -6/Proximity Caves | Upgraded with Propulsion slot (x1) 8144 | -6/Proximity Caves | Reached level 17 8153 | -6/Proximity Caves | Upgraded with Utility slot (x1) 8175 | -6/Proximity Caves | Attracted the attention of an 0b10 checkpoint 8241 | -6/Proximity Caves | Destroyed 7 combat bots 8282 | -6/Proximity Caves | Spotted B-75 Beast 8307 | -6/Proximity Caves | Discovered new exit (range 3) 8307 | -6/Proximity Caves | Identified exit to Factory 8360 | -6/Proximity Caves | Entered Factory 8362 | -6/Factory | Reached level 18 8398 | -6/Factory | Build established: Wizard-Scout 8401 | -6/Factory | Identified System Mapper 8522 | -6/Factory | Identified exit to Lower Caves 8522 | -6/Factory | Identified exit to Extension 8572 | -6/Factory | Fabricated Cld. Nuclear Pulse Thruster (x1) 8617 | -6/Factory | Fabricated Cld. Nuclear Pulse Thruster? 8917 | -6/Factory | Fabricated Cld. Nuclear Pulse Thruster (x1) 8967 | -6/Factory | Fabricated Cld. Nuclear Pulse Thruster (x1) 9439 | -6/Factory | Fabricated Lgt. Neutrino Core (x1) 9545 | -6/Factory | Local fabrication network quarantined 9606 | -6/Factory | Reached level 19 9626 | -6/Factory | Upgraded with Utility slot (x1) 9690 | -6/Factory | Destroyed 9 combat bots 9693 | -6/Factory | Manually triggered Chute Trap 9693 | -6/Factory | Sucked down chute 9693 | -6/Factory | Entered Waste 9693 | -6/Waste | The area was eerily silent 9745 | -6/Waste | Discovered new exit (range 12) 9767 | -6/Waste | Identified exit to Factory 9789 | -6/Waste | Entered Factory 9826 | -6/Factory | Central database locked down 9954 | -6/Factory | Fabricated Exp. Signal Interpreter (x1) 10032 | -6/Factory | Fabricated Exp. Targeting Computer? 10089 | -6/Factory | Local fabrication network quarantined 10114 | -6/Factory | Fabricated Exp. Targeting Computer (x1) 10118 | -6/Factory | Entered Extension 10122 | -6/Extension | Disrupted transfer network 10135 | -6/Extension | Rescued a captive Derelict 10142 | -6/Extension | Rescued A7 10142 | -6/Extension | Rescued a captive Derelict 10148 | -6/Extension | Rescued a captive Derelict 10210 | -6/Extension | Rescued a captive Derelict 10211 | -6/Extension | Rescued a captive Derelict 10230 | -6/Extension | Reached level 20 10247 | -6/Extension | Spotted B-75 Beast 10249 | -6/Extension | Spotted B-75 Beast 10272 | -6/Extension | Allies destroyed B-75 Beast 10279 | -6/Extension | Core integrity fell below 50% 10280 | -6/Extension | Allies destroyed B-75 Beast 10309 | -6/Extension | Discovered new exit (range 9) 10367 | -6/Extension | Rescued a captive Derelict 10367 | -6/Extension | Rescued a captive Derelict 10400 | -6/Extension | Rescued a captive Derelict 10404 | -6/Extension | Rescued a captive Derelict 10404 | -6/Extension | Rescued a captive Derelict 10408 | -6/Extension | Central database locked down 10486 | -6/Extension | Discovered new exit (range 10) 10486 | -6/Extension | Discovered new exit (range 6) 10488 | -6/Extension | Identified exit to Cetus 10503 | -6/Extension | Identified exit to Factory 10578 | -6/Extension | Entered Cetus 10578 | -6/Cetus | Accompanied by 18 allies 10583 | -6/Cetus | Acquired a Cetus Manufacturing Module code from A7 10588 | -6/Cetus | Spotted Cetus Guard 10588 | -6/Cetus | Spotted Cetus Guard 10591 | -6/Cetus | Destroyed Cetus Guard 10591 | -6/Cetus | Spotted Cetus Guard 10592 | -6/Cetus | Spotted Cetus Guard 10593 | -6/Cetus | Destroyed Cetus Guard 10601 | -6/Cetus | Destroyed Cetus Guard 10603 | -6/Cetus | Allies destroyed Cetus Guard 10640 | -6/Cetus | Started Cetus Manufacturing Module 10648 | -6/Cetus | Discovered new exit (range 17) 10655 | -6/Cetus | Spotted Cetus Guard 10655 | -6/Cetus | Spotted Cetus Guard 10658 | -6/Cetus | Spotted Cetus Guard 10665 | -6/Cetus | Manufactured an Enhanced Grunt 10677 | -6/Cetus | Destroyed Cetus Guard 10681 | -6/Cetus | Allies destroyed Cetus Guard 10683 | -6/Cetus | Destroyed Cetus Guard 10684 | -6/Cetus | Spotted Cetus Guard 10690 | -6/Cetus | Manufactured an Enhanced Grunt 10692 | -6/Cetus | Reached level 21 10692 | -6/Cetus | Destroyed Cetus Guard 10696 | -6/Cetus | Discovered exit to Factory (range 17) 10699 | -6/Cetus | Met Revision 17 10715 | -6/Cetus | Manufactured an Enhanced Grunt 10740 | -6/Cetus | Manufactured an Enhanced Grunt 10765 | -6/Cetus | Manufactured an Enhanced Grunt 10782 | -6/Cetus | Identified exit to Archives 10815 | -6/Cetus | Destroyed A7 10818 | -6/Cetus | Extracted ID and sensor layout for unrecognized location from A7's data core 10834 | -6/Cetus | Entered Archives 10834 | -6/Archives | Accompanied by 11 allies 10855 | -6/Archives | Discovered new exit (range 18) 10863 | -6/Archives | Discovered new exit (range 14) 10866 | -6/Archives | Identified exit to Hub_04(d) 10888 | -6/Archives | Entered Hub_04(d) 10888 | -6/Hub_04(d) | Accompanied by 11 allies 11018 | -6/Hub_04(d) | Spotted B-75 Beast 11023 | -6/Hub_04(d) | Garrison activated, responded to threat 11114 | -6/Hub_04(d) | Reached level 22 11117 | -6/Hub_04(d) | Upgraded with Utility slot (x1) 11468 | -6/Hub_04(d) | Network Hub disabled 11479 | -6/Hub_04(d) | Network Hub disabled 11496 | -6/Hub_04(d) | Network Hub disabled 11496 | -6/Hub_04(d) | Network Hub disabled 11498 | -6/Hub_04(d) | Spotted Lightning 11498 | -6/Hub_04(d) | Spotted Lightning 11498 | -6/Hub_04(d) | Spotted Lightning 11498 | -6/Hub_04(d) | Spotted Lightning 11506 | -6/Hub_04(d) | Spotted Lightning 11513 | -6/Hub_04(d) | Spotted Lightning 11530 | -6/Hub_04(d) | Core integrity fell below 20% 11530 | -6/Hub_04(d) | Entered Factory 11531 | -5/Factory | Core integrity fell below 50% 11531 | -5/Factory | Core integrity fell below 20% 11627 | -5/Factory | Central database locked down 11667 | -5/Factory | Fabricated Adv. Armor Integrity Analyzer (x1) 11698 | -5/Factory | Fabricated Force Lance (x1) 11742 | -5/Factory | Fabricated Cld. Plasma Cannon (x1) 11783 | -5/Factory | Fabricated Plasma Cutter (x3) 11788 | -5/Factory | Manually triggered Chute Trap 11788 | -5/Factory | Sucked down chute 11788 | -5/Factory | Entered Waste 11795 | -5/Waste | Spotted C-40 Crusher 11796 | -5/Waste | Spotted C-40 Crusher 11799 | -5/Waste | Spotted C-40 Crusher 11799 | -5/Waste | Spotted C-40 Crusher 11822 | -5/Waste | Destroyed C-40 Crusher 11835 | -5/Waste | Spotted C-40 Crusher 11849 | -5/Waste | Discovered new exit (range 18) 11850 | -5/Waste | Spotted C-40 Crusher 11871 | -5/Waste | Destroyed C-40 Crusher 11878 | -5/Waste | Destroyed C-40 Crusher 11919 | -5/Waste | Destroyed C-40 Crusher 11923 | -5/Waste | Destroyed C-40 Crusher 12027 | -5/Waste | Destroyed C-40 Crusher 12110 | -5/Waste | Identified exit to Factory 12112 | -5/Waste | Entered Factory 12350 | -5/Factory | Repaired Broken Enh. Nova Cannon 12367 | -5/Factory | Discovered new exit (range 18) 12387 | -5/Factory | Identified exit to Upper Caves 12574 | -5/Factory | Reached level 23 13012 | -5/Factory | First assault squad dispatched 13027 | -5/Factory | Found Prototype Launcher 13069 | -5/Factory | Identified Scatter Rocket Array 13183 | -5/Factory | Destroyed 15 combat bots 13228 | -5/Factory | Spotted B-75 Beast 13518 | -5/Factory | Fabricated Cld. Field Propulsion Drive (x1) 13566 | -5/Factory | Fabricated Cld. Field Propulsion Drive (x1) 13614 | -5/Factory | Fabricated Cld. Field Propulsion Drive (x1) 13663 | -5/Factory | Fabricated Cld. Field Propulsion Drive (x1) 13694 | -5/Factory | Discovered new exit (range 17) 13822 | -5/Factory | Local fabrication network quarantined 13935 | -5/Factory | Entered Upper Caves 13943 | -5/Upper Caves | Learned location of 1 exit from Factory 13947 | -5/Upper Caves | Attracted the attention of an 0b10 checkpoint 13980 | -5/Upper Caves | Spotted G8-PDR(f) 13981 | -5/Upper Caves | Encountered a Master Thief 14007 | -5/Upper Caves | Destroyed G8-PDR(f) 14079 | -5/Upper Caves | Discovered new exit (range 5) 14080 | -5/Upper Caves | Identified exit to Upper Caves 14080 | -5/Upper Caves | Entered another Upper Caves area 14082 | -5/Upper Caves | Reached level 24 14082 | -5/Upper Caves | Upgraded with Utility slot (x1) 14122 | -5/Upper Caves | Discovered new exit (range 13) 14152 | -5/Upper Caves | Identified exit to Zhirov 14152 | -5/Upper Caves | Entered Zhirov 14153 | -5/Zhirov | Discovered new exit (range 3) 14159 | -5/Zhirov | Met Zhirov 14164 | -5/Zhirov | Learned location of Quarantine (-3) 14164 | -5/Zhirov | Learned location of Testing (-2) 14164 | -5/Zhirov | Learned location of Command (-1) 14168 | -5/Zhirov | Zhirov requested help retrieving the SGEMP Prototype 14172 | -5/Zhirov | Found Alien Artifact 14172 | -5/Zhirov | Identified Integrated Dissipator 14172 | -5/Zhirov | Installed Integrated Dissipator, increased core heat dissipation (+2%) 14177 | -5/Zhirov | Found Alien Artifact 14206 | -5/Zhirov | Identified exit to Proximity Caves 14206 | -5/Zhirov | Entered Proximity Caves 14208 | -4/Proximity Caves | Attracted the attention of an 0b10 checkpoint 14247 | -4/Proximity Caves | Identified exit to Factory 14255 | -4/Proximity Caves | Learned Research stockpile data 14286 | -4/Proximity Caves | Entered Factory 14287 | -4/Factory | Identified exit to Research 14288 | -4/Factory | Reached level 25 14396 | -4/Factory | Fabricated Exp. Cooling System (x1) 14493 | -4/Factory | Fabricated Mni. Fusion Reactor (x1) 14589 | -4/Factory | Fabricated Mni. Fusion Reactor (x1) 14687 | -4/Factory | Local fabrication network quarantined 14707 | -4/Factory | Manually triggered Chute Trap 14707 | -4/Factory | Sucked down chute 14707 | -4/Factory | Entered Waste 14708 | -4/Waste | Joined by Warlord forces that had cleared the area 14768 | -4/Waste | Discovered new exit (range 13) 14779 | -4/Waste | Identified exit to Factory 14781 | -4/Waste | Entered Factory 14781 | -4/Factory | Accompanied by 1 ally 14975 | -4/Factory | Fabricated Plasma Lance (x1) 15004 | -4/Factory | Fabricated Imp. Plasma Cutter? 15125 | -4/Factory | Identified exit to Upper Caves 15125 | -4/Factory | Identified exit to Armory 15132 | -4/Factory | Discovered exit to Research (range 15) 15270 | -4/Factory | Local fabrication network quarantined 15432 | -4/Factory | Spotted B-86 Titan 15504 | -4/Factory | Destroyed 7 combat bots 15531 | -4/Factory | First assault squad dispatched 15549 | -4/Factory | Entered Armory 15630 | -4/Armory | Reached level 26 15736 | -4/Armory | Found Prototype Slashing Weapon 15736 | -4/Armory | Identified Molecular Scythe 16048 | -4/Armory | Energy Cycler disabled 16049 | -4/Armory | Identified Transdimensional Reconstructor 16049 | -4/Armory | Warped through subspace to slip node 16049 | -4/Armory | Discovered new exit (range 1) 16049 | -4/Armory | Identified exit to Lab 16063 | -4/Armory | Entered Lab 16065 | -4/Lab | Reached level 27 16071 | -4/Lab | Upgraded with Utility slot (x1) 16227 | -4/Lab | Discovered exit to Research (range 9) 16231 | -4/Lab | Hidden lab's door opened automatically 16231 | -4/Lab | Sensor layout match revealed 16232 | -4/Lab | Gained access to the hidden lab's interior 16232 | -4/Lab | Unable to decrypt terminal 16245 | -4/Lab | Found Deep Network Scanner 16249 | -4/Lab | Found Prototype Energy Gun 16249 | -4/Lab | Identified Tachyon Dispersion Ray 16255 | -4/Lab | Found Prototype Energy Cannon 16255 | -4/Lab | Identified Potential Cannon 16264 | -4/Lab | Found Alien Artifact 16264 | -4/Lab | Identified Core Expander 16264 | -4/Lab | Installed Core Expander, added new Propulsion slot 16271 | -4/Lab | Found Alien Artifact 16271 | -4/Lab | Identified Integrated Reactor 16271 | -4/Lab | Installed Integrated Reactor, increased core energy generation (+2%) 16282 | -4/Lab | Unable to decrypt terminal 16290 | -4/Lab | Found Transdimensional Reconstructor 16293 | -4/Lab | Found Alien Artifact 16296 | -4/Lab | Unable to decrypt terminal 16301 | -4/Lab | Entered Research 16303 | -3/Research | Reached level 28 16329 | -3/Research | Discovered new exit (range 5) 16330 | -3/Research | Identified exit to Research 16412 | -3/Research | Destroyed 9 combat bots 16445 | -3/Research | Identified exit to Quarantine 16452 | -3/Research | Spotted B-86 Titan 16468 | -3/Research | Destroyed B-86 Titan 16501 | -3/Research | Revision forces began assault on 0b10 16527 | -3/Research | Destroyed 12 combat bots 16658 | -3/Research | Fabricated Cld. Q-thruster? 16726 | -3/Research | Fabricated Cld. Q-thruster (x1) 16756 | -3/Research | Reached level 29 17001 | -3/Research | Research terminal network offline 17003 | -3/Research | Local fabrication network quarantined 17072 | -3/Research | Entered Quarantine 17083 | -3/Quarantine | Cryocooling Duct disabled 17098 | -3/Quarantine | Ambient heat levels rising (+20) 17098 | -3/Quarantine | Non-combat units ordered to evacuate 17132 | -3/Quarantine | Identified Core Reset Matrix 17186 | -3/Quarantine | Found Quantum Capacitor 17224 | -3/Quarantine | Garrison activated, responded to threat 17243 | -3/Quarantine | Found Alien Artifact 17246 | -3/Quarantine | Found Alien Artifact 17255 | -3/Quarantine | Identified Hpw. Transdimensional Reconstructor (x2) 17339 | -3/Quarantine | Found Alien Artifact 17345 | -3/Quarantine | Identified Subatomic Replicator 17397 | -3/Quarantine | Discovered exit to Research (range 11) 17417 | -3/Quarantine | Spotted Alpha 7 17428 | -3/Quarantine | Destroyed 10 combat bots 17462 | -3/Quarantine | Spotted Fortress 17477 | -3/Quarantine | Discovered new exit (range 5) 17477 | -3/Quarantine | Identified exit to Section 7 17579 | -3/Quarantine | Entered Section 7 17581 | -3/Section 7 | Reached level 30 17582 | -3/Section 7 | Upgraded with Utility slot (x1) 17605 | -3/Section 7 | Found Integrated Reactor 17605 | -3/Section 7 | Installed Integrated Reactor, increased core energy generation (+2%) 17681 | -3/Section 7 | Spotted S7 Guard 17685 | -3/Section 7 | Found Alien Artifact 17685 | -3/Section 7 | Identified Integrated Singularity Reactor 17685 | -3/Section 7 | Installed Integrated Singularity Reactor, increased core energy generation (+2%) 17693 | -3/Section 7 | Spotted S7 Guard 17706 | -3/Section 7 | Destroyed S7 Guard 17719 | -3/Section 7 | Destroyed S7 Guard 17763 | -3/Section 7 | Found Alien Artifact 17763 | -3/Section 7 | Identified Core Regenerator 17763 | -3/Section 7 | Used Core Regenerator, restored core integrity (+0) 17816 | -3/Section 7 | Spotted S7 Guard 17818 | -3/Section 7 | Found Alien Artifact 17818 | -3/Section 7 | Identified Integrated Heat Negator 17818 | -3/Section 7 | Installed Integrated Heat Negator, increased core heat dissipation (+2%) 17839 | -3/Section 7 | Destroyed S7 Guard 17848 | -3/Section 7 | Found Integrated Reactor 17848 | -3/Section 7 | Installed Integrated Reactor, increased core energy generation (+2%) 17878 | -3/Section 7 | Spotted S7 Guard 17886 | -3/Section 7 | Found Alien Artifact 17886 | -3/Section 7 | Identified Core Membrane 17886 | -3/Section 7 | Installed Core Membrane, gained immunity to corruption 17943 | -3/Section 7 | Spotted B-99 Colossus 17956 | -3/Section 7 | Found Alien Artifact 17956 | -3/Section 7 | Identified LRC Matter Compressor 17956 | -3/Section 7 | Installed LRC Matter Compressor, increased matter storage capacity (+125) 17959 | -3/Section 7 | Found Alien Artifact 17959 | -3/Section 7 | Identified LRC Armor 17959 | -3/Section 7 | Installed LRC Armor, increased core integrity (+250) 18041 | -3/Section 7 | Spotted Executioner 18041 | -3/Section 7 | Spotted Executioner 18045 | -3/Section 7 | Destroyed Executioner 18050 | -3/Section 7 | Destroyed Executioner 18110 | -3/Section 7 | Spotted B-86 Titan 18177 | -3/Section 7 | Found Alien Artifact 18177 | -3/Section 7 | Identified Integrity Redistributor 18177 | -3/Section 7 | Used Integrity Redistributor, redistributed integrity from core (-10) 18198 | -3/Section 7 | Found Integrated Reactor 18198 | -3/Section 7 | Installed Integrated Reactor, increased core energy generation (+2%) 18229 | -3/Section 7 | Spotted Alpha 7 18241 | -3/Section 7 | Entered Research 18243 | -2/Research | Reached level 31 18285 | -2/Research | Discovered new exit (range 8) 18286 | -2/Research | Identified exit to Testing 18421 | -2/Research | Spotted B-90 Cyclops 18581 | -2/Research | Discovered new exit (range 8) 18652 | -2/Research | Fabricated Cld. Q-thruster (x1) 18710 | -2/Research | Fabricated Cld. Q-thruster (x1) 18730 | -2/Research | Found Enh. Gamma Bomb Array 18895 | -2/Research | Fabricated Cld. Q-thruster (x1) 18899 | -2/Research | Fabricated Exp. Armor Integrity Analyzer? 18947 | -2/Research | Local fabrication network quarantined 18970 | -2/Research | Entered Testing 18972 | -2/Testing | Reached level 32 19003 | -2/Testing | Found Prototype Energy Cannon 19003 | -2/Testing | Identified Imp. Potential Cannon 19019 | -2/Testing | Found Prototype Ballistic Cannon 19019 | -2/Testing | Identified Omega Cannon 19045 | -2/Testing | Found Prototype Device 19045 | -2/Testing | Identified Exp. ECM Suite 19062 | -2/Testing | Spotted Striker 19066 | -2/Testing | Spotted Alpha 7 19072 | -2/Testing | Spotted 46-P6X(K) 19072 | -2/Testing | Spotted Y5-KC2(K) 19072 | -2/Testing | Spotted 34-IZJ(K) 19088 | -2/Testing | Allies destroyed Alpha 7 19130 | -2/Testing | Discovered new exit (range 3) 19130 | -2/Testing | Identified exit to Access 19249 | -2/Testing | Fabricated Adv. Particle Accelerator (x1) 19356 | -2/Testing | Found Prototype Launcher 19356 | -2/Testing | Identified Adv. Micro-nuke Launcher 19421 | -2/Testing | Fabricated Zero-point Reactor (x1) 19522 | -2/Testing | Fabricated Zero-point Reactor (x1) 19534 | -2/Testing | Fabricated Exp. Force Field (x1) 19767 | -2/Testing | Local fabrication network quarantined 19782 | -2/Testing | Entered Access 19784 | -1/Access | Reached level 33 19823 | -1/Access | Fabricated Exp. Phase Shifter (x1) 19940 | -1/Access | Reached level 34 19942 | -1/Access | Upgraded with Utility slot (x1) 19983 | -1/Access | Destroyed 12 combat bots 20032 | -1/Access | First assault squad dispatched 20064 | -1/Access | Fabricated EM Dispersion Field (x1) 20089 | -1/Access | Deep Network Scanner fried by hacking feedback 20117 | -1/Access | Identified exit to Command 20137 | -1/Access | Identified exit to Surface 20149 | -1/Access | Spotted B-99 Colossus 20172 | -1/Access | Local fabrication network quarantined 20186 | -1/Access | Garrison activated, responded to threat 20188 | -1/Access | Reached level 35 20225 | -1/Access | Identified exit to Garrison 20225 | -1/Access | Entered Garrison 20234 | -1/Garrison | Destroyed 15 combat bots 20234 | -1/Garrison | Spotted B-99 Colossus 20237 | -1/Garrison | Triggered checkpoint 20251 | -1/Garrison | High security lockdown imminent 20276 | -1/Garrison | Triggered checkpoint 20277 | -1/Garrison | Destroyed 18 combat bots 20282 | -1/Garrison | Discovered new exit (range 12) 20284 | -1/Garrison | Identified exit to Access 20284 | -1/Garrison | Entered Access 20287 | -1/Access | Maximum security lockdown engaged 20287 | -1/Access | Identified exit to Garrison 20295 | -1/Access | Garrison activated, responded to threat 20325 | -1/Access | Reached level 36 20354 | -1/Access | Energy Cycler disabled 20361 | -1/Access | Spotted B-99 Colossus 20386 | -1/Access | Spotted B-99 Colossus 20386 | -1/Access | Spotted B-99 Colossus 20398 | -1/Access | Build established: Machinist-Scout 20426 | -1/Access | Spotted B-99 Colossus 20477 | -1/Access | Destroyed 14 combat bots 20496 | -1/Access | Spotted Striker 20496 | -1/Access | Spotted Executioner 20498 | -1/Access | Destroyed Executioner 20502 | -1/Access | Destroyed Striker 20503 | -1/Access | Discovered exit to Command (range 17) 20504 | -1/Access | Spotted B-99 Colossus 20543 | -1/Access | Entered Command 20545 | -1/Command | Reached level 37 20558 | -1/Command | Destroyed 23 combat bots 20592 | -1/Command | Phase Generator disabled 20602 | -1/Command | Disengaged cave seal 20602 | -1/Command | Wild derelicts emerged from the dark tunnel 20639 | -1/Command | Spotted M Guard 20639 | -1/Command | Spotted M Guard 20648 | -1/Command | Spotted Combat Programmer 20648 | -1/Command | Spotted Combat Programmer 20663 | -1/Command | Destroyed M Guard 20668 | -1/Command | Destroyed M Guard 20670 | -1/Command | Found Prototype Device 20670 | -1/Command | Identified AEGIS Remote Shield 20675 | -1/Command | Found Prototype Energy Cannon 20685 | -1/Command | Destroyed Combat Programmer 20692 | -1/Command | Destroyed Combat Programmer 20692 | -1/Command | Destroyed all MAIN.C guards 20703 | -1/Command | Identified Cld. Nova Cannon 20711 | -1/Command | Found AEGIS Remote Shield 20793 | -1/Command | First assault squad dispatched 20829 | -1/Command | High security lockdown imminent 20909 | -1/Command | High security lockdown engaged 21015 | -1/Command | Destroyed 61 combat bots 21057 | -1/Command | Reached level 38 21078 | -1/Command | Destroyed 18 combat bots 21235 | -1/Command | Spotted Investigator 21238 | -1/Command | Destroyed Investigator 21324 | -1/Command | Destroyed 146 combat bots 21443 | -1/Command | Spotted Executioner 21443 | -1/Command | Spotted Striker 21443 | -1/Command | Spotted Executioner 21444 | -1/Command | Reached level 39 21452 | -1/Command | Destroyed Striker 21458 | -1/Command | Destroyed Executioner 21459 | -1/Command | Destroyed Executioner 21480 | -1/Command | Destroyed 45 combat bots 21500 | -1/Command | Spotted Executioner 21500 | -1/Command | Spotted Striker 21500 | -1/Command | Spotted Striker 21515 | -1/Command | Destroyed Striker 21524 | -1/Command | Destroyed Executioner 21525 | -1/Command | Destroyed Striker 21546 | -1/Command | Destroyed 9 combat bots 21587 | -1/Command | Spotted B-99 Colossus 21601 | -1/Command | Destroyed B-99 Colossus 21643 | -1/Command | Spotted Striker 21643 | -1/Command | Spotted Striker 21643 | -1/Command | Spotted Executioner 21660 | -1/Command | Spotted Executioner 21660 | -1/Command | Spotted Executioner 21663 | -1/Command | Spotted Investigator 21665 | -1/Command | Destroyed Executioner 21666 | -1/Command | Spotted Executioner 21667 | -1/Command | Destroyed Executioner 21668 | -1/Command | Destroyed Investigator 21674 | -1/Command | Destroyed Executioner 21683 | -1/Command | Destroyed Executioner 21685 | -1/Command | Destroyed Striker 21711 | -1/Command | Destroyed 96 combat bots 21794 | -1/Command | Destroyed Striker 21875 | -1/Command | Destroyed 63 combat bots 21917 | -1/Command | Core integrity fell below 50% 22045 | -1/Command | Destroyed 15 combat bots 22156 | -1/Command | Met MAIN.C 22156 | -1/Command | 0b10 Conduit disabled 22163 | -1/Command | Destroyed MAIN.C Shell 22166 | -1/Command | MAIN.C activated Command garrisons 22334 | -1/Command | Destroyed MAIN.C 22381 | -1/Command | Spotted B-99 Colossus 22488 | -1/Command | Destroyed B-99 Colossus 22602 | -1/Command | Spotted Executioner 22605 | -1/Command | Reached level 40 22605 | -1/Command | Destroyed Executioner 22606 | -1/Command | Spotted Executioner 22606 | -1/Command | Destroyed Executioner 22607 | -1/Command | Upgraded with Utility slot (x1) 22630 | -1/Command | Found Prototype Processor 22630 | -1/Command | Identified Exp. Core Analyzer 22661 | -1/Command | Spotted B-99 Colossus 22673 | -1/Command | Destroyed B-99 Colossus 22675 | -1/Command | Found Exp. Targeting Computer 22679 | -1/Command | Found Prototype Processor 22679 | -1/Command | Identified Exp. Target Analyzer 22914 | -1/Command | Warped through subspace to slip node 22914 | -1/Command | Discovered new exit (range 5) 22918 | -1/Command | Identified exit to Access_0 22923 | -1/Command | Entered Access_0 22924 | -1/Access_0 | Met Architect 22932 | -1/Access_0 | Architect warped through subspace 22947 | -1/Access_0 | Destroyed A8 22951 | -1/Access_0 | Found Exp. Phase Shifter 22968 | -1/Access_0 | Architect warped through subspace 22986 | -1/Access_0 | Destroyed 9 combat bots 22998 | -1/Access_0 | Architect warped through subspace 23023 | -1/Access_0 | Architect warped through subspace 23045 | -1/Access_0 | Architect warped through subspace 23075 | -1/Access_0 | Architect warped through subspace 23089 | -1/Access_0 | Architect warped through subspace 23100 | -1/Access_0 | Architect warped through subspace 23112 | -1/Access_0 | Subspace Access Node disabled 23116 | -1/Access_0 | Architect warped through subspace 23118 | -1/Access_0 | Subspace Access Node disabled 23140 | -1/Access_0 | A6 warped into view 23140 | -1/Access_0 | Architect warped through subspace 23144 | -1/Access_0 | Destroyed A6 23163 | -1/Access_0 | Architect warped through subspace 23198 | -1/Access_0 | Architect warped through subspace 23229 | -1/Access_0 | Destroyed A2 23235 | -1/Access_0 | Architect warped through subspace 23238 | -1/Access_0 | Extracted Singularity Gate Test 138-C access codes from A2's data core 23239 | -1/Access_0 | Used Subatomic Replicator to replicate Gatling Beam 23263 | -1/Access_0 | Architect warped through subspace 23277 | -1/Access_0 | Architect warped through subspace 23288 | -1/Access_0 | Architect warped through subspace 23293 | -1/Access_0 | Found Exp. Weapon Cycler 23299 | -1/Access_0 | Architect warped through subspace 23310 | -1/Access_0 | Architect warped through subspace 23321 | -1/Access_0 | Architect warped through subspace 23326 | -1/Access_0 | Architect warped through subspace 23330 | -1/Access_0 | Subspace Access Node disabled 23333 | -1/Access_0 | Architect warped through subspace 23335 | -1/Access_0 | Subspace Access Node disabled 23362 | -1/Access_0 | A5 warped into view 23380 | -1/Access_0 | Destroyed A5 23407 | -1/Access_0 | Singularity Gate disabled 23408 | -1/Access_0 | Singularity Gate disabled 23441 | -1/Access_0 | Destroyed Architect 23444 | -1/Access_0 | Extracted unknown sensor trigger ID from Architect's data core 23447 | -1/Access_0 | Found Prototype Hackware 23447 | -1/Access_0 | Identified Architect God Chip A 23449 | -1/Access_0 | Found Prototype Hackware 23449 | -1/Access_0 | Identified Architect God Chip D 23582 | -1/Access_0 | A4 warped into view 23585 | -1/Access_0 | Destroyed A4 23677 | -1/Access_0 | Destroyed 17 combat bots 23725 | -1/Access_0 | Build established: Wizard-Scout 23740 | -1/Access_0 | A3 warped into view 23744 | -1/Access_0 | Destroyed A3 23849 | -1/Access_0 | Found Prototype Device 23849 | -1/Access_0 | Identified ST Field Compressor 23866 | -1/Access_0 | Found Hpw. Transdimensional Reconstructor 23869 | -1/Access_0 | Warped through subspace to slip node 23869 | -1/Access_0 | Discovered exit to Surface (range 8) 23893 | *** | Establishing 0b11! Last Messages --------------- 23763_ Enhanced Grunt destroyed. 23765_ Adv. Heat Sink melted. 23765_ Prototype Device melted. 23765_ Enhanced Grunt destroyed. 23769_ Used Protomatter to restore core integrity (+38) 23849_ Dropped Exp. Energy Well. 23849_ Acquired Prototype Device. 23849_ Identified ST Field Compressor. 23851_ Extracted 5 energy. 23852_ Dropped Protomatter-75. 23852_ Used Protomatter to restore part integrity (+21) 23853_ Extracted 5 energy. 23853_ Acquired Exp. Energy Well. 23861_ Dropped Protomatter-51. 23866_ Acquired Hpw. Transdimensional Reconstructor. 23869_ Warped through subspace, drawn to slip node. 23869_ EXIT=FOUND: SURFACE 23875_ Dimensional Slip Node implodes. 23876_ The unstable cave ceiling collapses. [Achievement: One Last FU] Map ----- +----------------------------------------------------+ | | | | | | | | | | | | | | | | | | | | | | | | | | | | | | | | | ?????????????????????????????????????????????????? | | ?????????????????????????????????????????????????? | | ?????????????????????????????????????????????????? | | ?????????????????????????????????????????????????? | | ?????????????????????????????????????????????????? | | ?????????????????????????????????????????????????? | | ????????????????????????###??????????????????????? | | ???????????????????????## ##?????????????????????? | | ???????????????????????# #?????????????????????? | | ???????????????????????# @ #?????????????????????? | | ?????????????????????### #?????????????????????? | | ???????????????????### ##????????????????????? | | ???????????????????# # # ##???????????????????? | | ??????????????????## # ##??????????????????? | | ??????????????????# #??????????????????? | | ??????????????????# #??????????????????? | | ??????????????????# # #??????????????????? | | ??????????????????# #??????????????????? | | ??????????????????# #??????????????????? | | ??????????????????## # #??????????????????? | | ???????????????????# # ##??????????????????? | | ???????????????????### #???????????????????? | | ?????????????????????## ;;##???????????????????? | | ?????????????????????? "; #????????????????????? | | ??????????????????????;" ##????????????????????? | | ?????????????????????# #?????????????????????? | | ????????????????????? ## ?????????????????????? | | ????????????????????? ?? #?????????????????????? | | ????????????????????? ??###?????????????????????? | | ???????????????????? ??????????????????????????? | | ???????????????????? ##??????????????????????????? | | ?????????????????????????????????????????????????? | | ?????????????????????????????????????????????????? | | ?????????????????????????????????????????????????? | +----------------------------------------------------+ Best States ------------- Heat Dissipation 193 Energy Generation 136 Energy Capacity 4380 Matter Stores 425 Matter Capacity 425 Sight Range 25 Robot Scan Range 18 Terrain Scan Density 10 Armor Coverage 800 Resistance: TH 90 Resistance: EM 75 Weapon Cycling 30 Phase Shifting 20 Evasion (%) 87 Targeting Accuracy 36 Armor Integrity Analysis 90 Particle Charging 50 Offensive Hacking 110 Defensive Hacking 110 Item Schematics ----------------- Nuclear Pulse Thruster | -7/Factory | Hacked System Shield | -7/Factory | Hacked Hacking Suite | -7/Factory | Hacked Imp. Armor Integrity Analyzer | -7/Factory | Hacked Combat Drone Bay | -7/Data Miner | Free Lgt. Regenerative Plating | -7/Data Miner | Free Cmb. Gravmag System | -7/Data Miner | Free Triangulator | -7/Data Miner | Free Exp. Targeting Computer | -7/Data Miner | Free Exp. Transmission Jammer | -7/Data Miner | Free Plasma Sword | -7/Data Miner | Free Cld. Nuclear Pulse Thruster | -6/Factory | Hacked Exp. Signal Interpreter | -6/Factory | Hacked Adv. Armor Integrity Analyzer | -6/Factory | Hacked Lgt. Neutrino Core | -6/Factory | Hacked Field Propulsion Drive | -6/Factory | Hacked Cld. Plasma Cannon | -6/Extension | Hacked Lance | -6/Extension | Hacked Hyp. Gauss Cannon | -6/Extension | Hacked Adv. Target Analyzer | -6/Extension | Hacked Force Lance | -5/Factory | Hacked Plasma Cutter | -5/Factory | Hacked Imp. Plasma Cutter | -5/Factory | Hacked Diametric Drive | -5/Factory | Scanalyzed Lgt. Particle Reactor | -5/Factory | Hacked Adv. Cooling System | -5/Factory | Hacked Adv. Particle Charger | -5/Factory | Hacked Exp. Cooling System | -5/Factory | Hacked Enh. Force Lance | -5/Factory | Hacked Plasma Lance | -5/Factory | Hacked Cld. Field Propulsion Drive | -5/Factory | Hacked Assault Drone Bay | -5/Zhirov | Free Exp. Heat Sink | -5/Zhirov | Free Exp. Optical Array | -5/Zhirov | Free Imp. Arc Thrower | -5/Zhirov | Free Mni. Fusion Reactor | -4/Factory | Hacked Tesla Bomb Launcher | -4/Factory | Hacked Q-thruster | -4/Factory | Hacked Enh. Nova Cannon | -4/Armory | Downloaded Enh. Quantum Rifle | -4/Armory | Hacked Coolant Network | -4/Armory | Hacked Cld. Q-thruster | -3/Research | Hacked Particle Accelerator | -3/Research | Hacked Exp. Force Field | -3/Research | Hacked Imp. Particle Accelerator | -3/Research | Hacked Exp. Armor Integrity Analyzer | -3/Research | Hacked Adv. Particle Accelerator | -3/Quarantine | Hacked Exp. Weapon Cycler | -3/Quarantine | Hacked Quantum Capacitor | -3/Quarantine | Hacked Exp. Q-thruster | -3/Section 7 | Hacked Exp. Energy Well | -3/Section 7 | Hacked Enh. Gamma Bomb Array | -3/Section 7 | Hacked Cmb. Linear Gravjet | -2/Testing | Hacked Com. Mass Driver | -2/Testing | Hacked Zero-point Reactor | -2/Testing | Hacked Exp. Phase Shifter | -2/Testing | Hacked EM Dispersion Field | -1/Access | Hacked Robot Schematics ------------------ S-27 Virus | -7/Data Miner | Free G-50 Soldier | -7/Data Miner | Free L-41 Fighter | -7/Data Miner | Free P-70 Sage | -7/Data Miner | Free I-36 Angel | -7/Data Miner | Free I-47 Archangel | -7/Data Miner | Free Fabricated ------------ Nuclear Pulse Thruster | x2 | -7/Factory Nuclear Pulse Thruster | x2 | -7/Factory Imp. Armor Integrity Analyzer | x1 | -7/Factory Cld. Nuclear Pulse Thruster | x1 | -6/Factory Cld. Nuclear Pulse Thruster | x1 | -6/Factory Cld. Nuclear Pulse Thruster | x1 | -6/Factory Cld. Nuclear Pulse Thruster | x1 | -6/Factory Lgt. Neutrino Core | x1 | -6/Factory Exp. Signal Interpreter | x1 | -6/Factory Exp. Targeting Computer | x1 | -6/Factory Exp. Targeting Computer | x1 | -6/Factory Adv. Armor Integrity Analyzer | x1 | -5/Factory Force Lance | x1 | -5/Factory Cld. Plasma Cannon | x1 | -5/Factory Plasma Cutter | x3 | -5/Factory Cld. Field Propulsion Drive | x1 | -5/Factory Cld. Field Propulsion Drive | x1 | -5/Factory Cld. Field Propulsion Drive | x1 | -5/Factory Cld. Field Propulsion Drive | x1 | -5/Factory Exp. Cooling System | x1 | -4/Factory Mni. Fusion Reactor | x1 | -4/Factory Mni. Fusion Reactor | x1 | -4/Factory Plasma Lance | x1 | -4/Factory Imp. Plasma Cutter | x2 | -4/Factory Cld. Q-thruster | x1 | -3/Research Cld. Q-thruster | x1 | -3/Research Cld. Q-thruster | x1 | -2/Research Cld. Q-thruster | x1 | -2/Research Cld. Q-thruster | x1 | -2/Research Exp. Armor Integrity Analyzer | x1 | -2/Research Adv. Particle Accelerator | x1 | -2/Testing Zero-point Reactor | x1 | -2/Testing Zero-point Reactor | x1 | -2/Testing Exp. Force Field | x1 | -2/Testing Exp. Phase Shifter | x1 | -1/Access EM Dispersion Field | x1 | -1/Access Alien Tech Used ----------------- Integrated Dissipator Transdimensional Reconstructor Core Expander Integrated Reactor Integrated Singularity Reactor Core Regenerator Integrated Heat Negator Core Membrane LRC Matter Compressor LRC Armor Integrity Redistributor High-powered Transdimensional Reconstructor Subatomic Replicator Achievements -------------- 404 One Last FU Supersonic Challenges ------------ None RPGLIKE | -11 -10 -10 -9 -9 -9 -8 -8 -7 -7 -7 -7 -7 -7 -6 -6 -6 -6 -6 -6 -6 -6 -5 -5 -5 -5 -5 -5 -4 -4 -4 -4 -4 -4 -3 -3 -3 -2 -2 -1 -1 -1 -1 -1 --------- Run | Scr Mat Min Mat Min Exi Min Mat Fac Was Fac Low Low Dat Pro Fac Was Fac Ext Cet Arc Hub Fac Was Fac Upp Upp Zhi Pro Fac Was Fac Arm Lab Res Qua Sec Res Tes Acc Gar Acc Com Ac0 Levels Raised 39 | . 2 1 6 . . 1 2 1 . 1 . . . 2 2 . . 1 1 . 1 . . 1 . 1 . . 1 . . 1 1 2 . 1 1 1 3 . 1 4 . XP Earned 62096 | 3000 3579 1045 9000 692 117 652 3494 2221 139 336 388 460 364 2498 2362 67 149 1936 835 227 1325 665 67 1668 118 157 105 633 780 67 657 1813 970 2474 1091 1405 1601 1282 3906 835 1334 4998 584 XP Spent 61445 | 2970 3000 800 9460 . . . 4550 1390 . 900 . . . 3700 2900 . . 700 . . 3200 . . . . 3500 . . . . . . 4900 . . 4100 . 1500 5300 . . 8150 425 Upgrades 70 | 9 3 1 12 . . . 13 5 . 2 . . . 2 1 . . 2 . . 1 . . . . 1 . . . . . . 3 . . 1 . 2 2 . . 5 5 Power Slot 1 | . . . . . . . 1 . . . . . . . . . . . . . . . . . . . . . . . . . . . . . . . . . . . . Propulsion Slot 3 | 1 . 1 . . . . . . . . . . . 1 . . . . . . . . . . . . . . . . . . . . . . . . . . . . . Utility Slot 15 | 2 2 . 2 . . . 1 . . . . . . 1 1 . . . . . 1 . . . . 1 . . . . . . 1 . . 1 . . 1 . . 1 . Weapon Slot 2 | 1 . . 1 . . . . . . . . . . . . . . . . . . . . . . . . . . . . . . . . . . . . . . . . Core Integrity 9 | . . . 4 . . . . . . . . . . . . . . . . . . . . . . . . . . . . . . . . . . . . . . . 5 Heat Dissipation 3 | 2 . . . . . . . 1 . . . . . . . . . . . . . . . . . . . . . . . . . . . . . . . . . . . Energy Generation 3 | . . . 1 . . . . . . . . . . . . . . . . . . . . . . . . . . . . . . . . . . . . . . 2 . Mass Support 11 | 2 . . . . . . . . . . . . . . . . . 2 . . . . . . . . . . . . . . 2 . . . . 2 1 . . 2 . Inventory Capacity 6 | 1 1 . 4 . . . . . . . . . . . . . . . . . . . . . . . . . . . . . . . . . . . . . . . . Sight Range 2 | . . . . . . . 2 . . . . . . . . . . . . . . . . . . . . . . . . . . . . . . . . . . . . Sensor Range 9 | . . . . . . . 9 . . . . . . . . . . . . . . . . . . . . . . . . . . . . . . . . . . . . Ranged Accuracy 2 | . . . . . . . . 2 . . . . . . . . . . . . . . . . . . . . . . . . . . . . . . . . . . . Hack Attack % 2 | . . . . . . . . 1 . 1 . . . . . . . . . . . . . . . . . . . . . . . . . . . . . . . . . Hack Defense % 2 | . . . . . . . . 1 . 1 . . . . . . . . . . . . . . . . . . . . . . . . . . . . . . . . . Protomatter Created 26154 | . 240 . 853 46 131 . 804 62 386 . . 176 193 350 147 . 62 147 466 70 295 67 190 1010 . 118 . 24 . 97 651 426 . 673 285 607 254 385 1219 501 1376 12360 1483 Integrity Restored 23206 | . 717 . 1764 154 534 . 1282 111 24 . . 334 277 474 179 276 179 973 480 38 223 201 562 1269 . 354 . 72 . 165 800 479 . 943 198 468 286 377 183 64 781 5549 2436 Core 18302 | . 653 . 1386 111 525 . 899 63 24 . . 292 213 386 179 228 124 752 390 21 215 201 464 1028 . 354 . 72 . 43 668 436 . 772 147 305 274 196 144 42 563 4198 1934 Parts 4904 | . 64 . 378 43 9 . 383 48 . . . 42 64 88 . 48 55 221 90 17 8 . 98 241 . . . . . 122 132 43 . 171 51 163 12 181 39 22 218 1351 502 Protomatter Decayed 12094 | . . . 296 . . . 242 132 . . 114 . . 51 1 195 . 170 345 70 918 . . 514 . . . . . 140 344 532 . 1826 3 273 . 387 402 116 538 3962 523 Game ------ Seed SurveybotComponentLaser Manual? 1 Play Time 06:49:33 Cumulative 985.1 hours Start 2019.12.17 @ 21:41:09 End 2019.12.19 @ 00:45:56 Sessions 5 Manual Loads 0 Difficulty Rogue Special Mode Winter2019/RPGLIKE Game No. 314 Rogue 314 Adventurer 0 Explorer 0 Win Type 1 Total 71 Types 14/7/32/3/1/2/12 Lore% 97 Gallery% 95 Achievement% 83 Wizard Run 0 Options --------- ASCII 0 Keyboard 0 Movement Numpad Keybinds 0 Fullscreen 1 Font 18/SmallcapsGlow Map View 76x50 Tactical HUD 1 Map Filters NONE Filters NONE Steam 1 RUN: 43cdd476-3e29-4b15-a59c-94f1ffefd6b0